Period,Months,Unique Record Identifier,Account,Account Code Description,Supplier Name,Amount 
202006,Apr,202006101125,R1118,Counselling ,Heather Pennefather,"2,150.00"
202006,Apr,202006101126,R1118,Counselling ,Heather Pennefather,"1,600.00"
202006,Apr,202006102660,R1110,Redacted: Personal Information,Redacted,625.00
202006,Apr,202006103356,R0500,Agency Staff,Comensura Ltd,"1,586.10"
202006,Apr,202006103357,R0500,Agency Staff,Comensura Ltd,847.43
202006,Apr,202006103358,R0500,Agency Staff,Comensura Ltd,"1,032.80"
202006,Apr,202006103359,R0500,Agency Staff,Comensura Ltd,"1,061.85"
202006,Apr,202006103360,R0500,Agency Staff,Comensura Ltd,730.78
202006,Apr,202006103362,R0500,Agency Staff,Comensura Ltd,746.40
202006,Apr,202006103363,R0500,Agency Staff,Comensura Ltd,"1,032.80"
202006,Apr,202006103364,R0500,Agency Staff,Comensura Ltd,"4,438.90"
202006,Apr,202006103365,R0500,Agency Staff,Comensura Ltd,926.03
202006,Apr,202006103366,R0500,Agency Staff,Comensura Ltd,505.08
202006,Apr,202006103367,R0500,Agency Staff,Comensura Ltd,"1,032.80"
202006,Apr,202006103369,R1110,Force Doctor Fees,Comensura Ltd,"6,124.72"
202006,Apr,202006103555,R6750,Consultants Fees - Other,Cleardata UK Ltd,"2,065.18"
202006,Apr,202006104186,R1138,Psychological Screening,NTA Psychological Screening Ltd,"1,590.00"
202006,Apr,202006104187,R1138,Psychological Screening,NTA Psychological Screening Ltd,600.00
202006,Apr,202006104301,R1070,External Assessment Centres,College of Policing (NPIA),"6,074.24"
202006,Apr,202006104303,R1070,External Assessment Centres,College of Policing (NPIA),"2,404.61"
202006,Apr,202006100006,Z2123,Returned Payments - Clearance in the Year (Expenditure),Black Bag Technologies,"1,308.00"
202006,Apr,202006100120,Z2123,Returned Payments - Clearance in the Year (Expenditure),Ciceley Commercials,"40,278.10"
202006,Apr,202006101133,R4880,Ex-Gratia Payments,Exgratia Payments,650.00
202006,Apr,202006101572,R6710,Subscriptions,Lake District Search and Mountain Rescue Association,"12,400.00"
202006,Apr,202006101808,R6710,Subscriptions,Police and Crime Commissioner for Cheshire,"2,000.00"
202006,Apr,202006102070,R7290,Other Third Party Payments,Police and Crime Commissioner for North Yorkshire,"2,135.00"
202006,Apr,202006102130,Z2123,Returned Payments - Clearance in the Year (Expenditure),Diligence International LLC,"5,760.00"
202006,Apr,202006102136,R6757,Consultants Fees - Finance,Link Treasury Services Ltd,"6,750.00"
202006,Apr,202006102137,R6710,Subscriptions,The Copyright Licensing Agency Ltd,"1,975.20"
202006,Apr,202006102138,R6710,Subscriptions,The Police ICT Company Ltd,"60,000.00"
202006,Apr,202006102544,R6710,Subscriptions,UK Oracle User Group,899.00
202006,Apr,202006103049,Z2114,Police Property Act Fund - Transactions Money Out (Total Expenditure),Zest Cumbria cic,"2,500.00"
202006,Apr,202006103352,R7380,Settlement of 3rd Party Claims for damage to property / vehicles,Gallagher Bassett,"4,129.08"
202006,Apr,202006103521,R6824,NatWest Corporate Card Payments,Natwest Corporate Card,"3,761.24"
202006,Apr,202006103925,Z2123,Returned Payments - Clearance in the Year (Expenditure),Power Tecnique Limited,"1,488.00"
202006,Apr,202006103926,Z2123,Returned Payments - Clearance in the Year (Expenditure),Power Tecnique Limited,"-1,195.20"
202006,Apr,202006103927,Z2123,Returned Payments - Clearance in the Year (Expenditure),Power Tecnique Limited,"1,195.20"
202006,Apr,202006103928,Z2123,Returned Payments - Clearance in the Year (Expenditure),Power Tecnique Limited,"1,909.20"
202006,Apr,202006104172,R7042,Pension Services,XPS Administration Limited T/A XPS Administration,"8,911.17"
202006,Apr,202006104190,R1720,Other Support Function Training,Oracle Corporation UK Limited,"4,155.75"
202006,Apr,202006104244,R6710,Subscriptions,EU Supply Limited,"1,000.00"
202006,Apr,202006104356,R6710,Subscriptions,CPOSA,"3,074.00"
202006,Apr,202006104357,R6710,Subscriptions,CPOSA,"3,074.00"
202006,Apr,202006104390,R7290,Other Third Party Payments,Tellemachus Limited,"33,244.70"
202006,Apr,202006104526,R6710,Subscriptions,Chartered Institute of Public Finance and Accountancy,"15,000.00"
202006,Apr,202006100409,R5975,Other Operational Expenses,Change Grow Live,"5,000.00"
202006,Apr,202006104339,R3660,The information is confidential or would attract an exemption under the Freedom of Information Act e.g. where disclosure could be prejudicial to the commercial interests of any person including the authority ,Redacted,"1,980.00"
202006,Apr,202006104522,R2600,Rent,Reed Rains,750.00
202006,Apr,202006100003,R5320,Computer Software - Purchase,Cleverbridge,"1,979.00"
202006,Apr,202006100013,R5015,Telephone Charges - Mobile Phones,EE Limited,927.27
202006,Apr,202006100014,R5015,Telephone Charges - Mobile Phones,EE Limited,"4,596.91"
202006,Apr,202006100015,R5015,Telephone Charges - Mobile Phones,EE Limited,"4,594.86"
202006,Apr,202006100094,C5310,Computer Hardware - Purchase,SCC (Specialist Computer Centre),"2,626.00"
202006,Apr,202006100350,R5310,Computer Hardware - Purchase,BT Business Direct Ltd,"7,790.00"
202006,Apr,202006100410,R5325,Computer Software - Maintenance,Sellox Limited,"1,600.00"
202006,Apr,202006100411,R5325,Computer Software - Maintenance,Sellox Limited,"1,600.00"
202006,Apr,202006101612,R5320,Computer Software - Purchase,Red Gate Software Ltd,"3,805.00"
202006,Apr,202006101613,R5325,Computer Software - Maintenance,Red Gate Software Ltd,"8,835.30"
202006,Apr,202006101820,R5325,Computer Software - Maintenance,Force Information Systems Limited,"16,749.00"
202006,Apr,202006102055,R5325,Computer Software - Maintenance,Capita Secure Information Solutions Ltd,"4,335.43"
202006,Apr,202006102056,R5325,Computer Software - Maintenance,Capita Secure Information Solutions Ltd,"4,951.32"
202006,Apr,202006102057,R5325,Computer Software - Maintenance,Capita Secure Information Solutions Ltd,"17,481.72"
202006,Apr,202006102139,R5325,Computer Software - Maintenance,The Police ICT Company Ltd,"37,558.53"
202006,Apr,202006102461,R5325,Computer Software - Maintenance,Micro Systemation Ltd,"2,895.00"
202006,Apr,202006102611,R5215,Radio / Airwave Equipment - Maintenance,Police and Crime Commissioner for Merseyside,"4,000.00"
202006,Apr,202006103134,R5315,Computer Hardware - Maintenance,One Source IT Ltd,"1,994.21"
202006,Apr,202006103135,R5315,Computer Hardware - Maintenance,One Source IT Ltd,"8,950.00"
202006,Apr,202006103451,R5325,Computer Software - Maintenance,Softcat PLC,"50,483.00"
202006,Apr,202006103460,R5120,Networks Private Circuits,Insight Direct (UK) Ltd,"3,817.88"
202006,Apr,202006103514,R5010,Telephone Charges - Landlines,TalkTalk,"2,657.07"
202006,Apr,202006103517,R5315,Computer Hardware - Maintenance,Atos IT Services IT Limited,"8,200.00"
202006,Apr,202006103519,R5325,Computer Software - Maintenance,JML Software Solutions Ltd,"16,139.45"
202006,Apr,202006103569,R1720,Other Support Function Training,MHR International UK LTD,898.98
202006,Apr,202006103571,R5325,Computer Software - Maintenance,MHR International UK LTD,"1,104.00"
202006,Apr,202006103582,R5320,Computer Software - Purchase,Axon Public Safety UK Limited,"213,200.00"
202006,Apr,202006103583,R5325,Computer Software - Maintenance,Axon Public Safety UK Limited,"24,900.00"
202006,Apr,202006103587,R5325,Computer Software - Maintenance,Axon Public Safety UK Limited,"211,700.00"
202006,Apr,202006104245,R5320,Computer Software - Purchase,Griffeye Technologies AB,"1,295.00"
202006,Apr,202006104295,R5215,Radio / Airwave Equipment - Maintenance,Airwave Solutions Limited (Subsidiary:- Kelvin Connect),"76,290.37"
202006,Apr,202006104350,R5210,Radio / Airwave Equipment - Purchases,Motorola Solutions UK Ltd,860.00
202006,Apr,202006104691,R5310,Computer Hardware - Purchase,Xerox UK Ltd,591.00
202006,Apr,202006104693,R5310,Computer Hardware - Purchase,Xerox UK Ltd,-630.90
202006,Apr,202006104735,R5325,Computer Software - Maintenance,Phoenix Software Ltd,"151,765.45"
202006,Apr,202006100030,R2720,Other Cleaning & Domestic Equipment,Arrow County Supplies,"1,196.80"
202006,Apr,202006100039,R2720,Other Cleaning & Domestic Equipment,Arrow County Supplies,621.70
202006,Apr,202006100072,R3110,Vehicle Maintenance - Tyres & Tubes,Goodyear Dunlop Tyres UK Limited,"14,503.70"
202006,Apr,202006100083,R3450,Accident Damage (Below Insurance Excess)),National Windscreens,793.80
202006,Apr,202006100111,R3510,Vehicle Fuel,Allstar Business Solutions Ltd,"1,524.99"
202006,Apr,202006100207,R2700,Cleaning Contract,Bulloughs Cleaning Services Ltd,"37,222.21"
202006,Apr,202006100231,R2700,Cleaning Contract,Bulloughs Cleaning Services Ltd,"34,475.35"
202006,Apr,202006100327,R7006,North West Ambulance Service - Estates Management Collaboration,BID Group Ltd,"7,260.00"
202006,Apr,202006100328,R2030,Unplanned Building Services Security & Security Equipment Maintenance,BID Group Ltd,"1,052.28"
202006,Apr,202006100330,R7006,North West Ambulance Service - Estates Management Collaboration,BID Group Ltd,530.00
202006,Apr,202006100332,R7006,North West Ambulance Service - Estates Management Collaboration,BID Group Ltd,"1,307.00"
202006,Apr,202006100333,R7006,North West Ambulance Service - Estates Management Collaboration,BID Group Ltd,920.00
202006,Apr,202006100334,R7006,North West Ambulance Service - Estates Management Collaboration,BID Group Ltd,997.00
202006,Apr,202006100337,R7006,North West Ambulance Service - Estates Management Collaboration,BID Group Ltd,"2,010.00"
202006,Apr,202006100468,R2830,Professional Fees,Carigiet Cowen,800.00
202006,Apr,202006100469,R2840,Asset Valuation Fees,Carigiet Cowen,"3,000.00"
202006,Apr,202006100476,R4520,Canteen - Purchase of Food / Ingredients,Pioneer Foodservice,810.47
202006,Apr,202006100479,R4520,Canteen - Purchase of Food / Ingredients,Pioneer Foodservice,981.36
202006,Apr,202006100481,R4520,Canteen - Purchase of Food / Ingredients,Pioneer Foodservice,"1,064.24"
202006,Apr,202006100482,R4520,Canteen - Purchase of Food / Ingredients,Pioneer Foodservice,656.45
202006,Apr,202006100483,R4520,Canteen - Purchase of Food / Ingredients,Pioneer Foodservice,629.90
202006,Apr,202006100508,R3120,Vehicle Maintenance - Parts Purchase,TMS Motor Spares Ltd,535.00
202006,Apr,202006100553,R3460,Accident Damage (Below Insurance Threshold),Thompson Accident Repair Centre Ltd,"1,000.00"
202006,Apr,202006100619,R7006,North West Ambulance Service - Estates Management Collaboration,Dawson Electrical Services Ltd,"1,120.00"
202006,Apr,202006100620,R7006,North West Ambulance Service - Estates Management Collaboration,Dawson Electrical Services Ltd,"1,940.00"
202006,Apr,202006100640,R2020,Unplanned Building Services HVAC System,Carlisle Refrigeration Limited,837.60
202006,Apr,202006100643,R2020,Unplanned Building Services HVAC System,Carlisle Refrigeration Limited,"1,415.77"
202006,Apr,202006100645,R2275,Planned Servicing HVAC System,Carlisle Refrigeration Limited,770.00
202006,Apr,202006100646,R2140,Unplanned Building Maintenance Internal Maintenance,Carlisle Refrigeration Limited,"3,116.46"
202006,Apr,202006100681,R3120,Vehicle Maintenance - Parts Purchase,K and S McKenzie  Ltd,960.00
202006,Apr,202006100696,R2050,Unplanned Building Services Electrics,JJ Group (Contracting) Ltd,890.72
202006,Apr,202006100699,R2050,Unplanned Building Services Electrics,JJ Group (Contracting) Ltd,615.45
202006,Apr,202006100701,R7006,North West Ambulance Service - Estates Management Collaboration,Cumbria Mechanical and Plumbing Ltd,662.43
202006,Apr,202006100703,R2050,Unplanned Building Services Electrics,JJ Group (Contracting) Ltd,919.00
202006,Apr,202006100710,R7006,North West Ambulance Service - Estates Management Collaboration,Cumbria Mechanical and Plumbing Ltd,568.00
202006,Apr,202006100716,R7006,North West Ambulance Service - Estates Management Collaboration,JJ Group (Contracting) Ltd,542.20
202006,Apr,202006100855,R3130,Vehicle Maintenance - Work Done Externally,Cubbys Signs Ltd,600.00
202006,Apr,202006100858,R2660,Business Rates,Carlisle City Council,536.43
202006,Apr,202006100859,R2660,Business Rates,Carlisle City Council,"5,489.00"
202006,Apr,202006100860,R2660,Business Rates,Carlisle City Council,"7,360.25"
202006,Apr,202006100861,R2660,Business Rates,Carlisle City Council,"273,920.00"
202006,Apr,202006100862,R2660,Business Rates,Carlisle City Council,"6,611.75"
202006,Apr,202006100863,R2660,Business Rates,Carlisle City Council,"17,839.25"
202006,Apr,202006100864,R2610,Estates Leases,Carlisle City Council,"7,750.00"
202006,Apr,202006101005,R7006,North West Ambulance Service - Estates Management Collaboration,Andidrain Ltd,760.00
202006,Apr,202006101009,R2610,Estates Leases,Cumbria County Council,"1,706.25"
202006,Apr,202006101072,R2460,Grounds Maintenance - Contract,S Nicholson Grounds Maintenance,"1,275.00"
202006,Apr,202006101295,R2660,Business Rates,Eden District Council,"6,861.25"
202006,Apr,202006101296,R2660,Business Rates,Eden District Council,"28,502.13"
202006,Apr,202006101297,R2660,Business Rates,Eden District Council,"1,921.15"
202006,Apr,202006101299,R2660,Business Rates,Eden District Council,"22,704.50"
202006,Apr,202006101300,R2660,Business Rates,Eden District Council,"1,397.20"
202006,Apr,202006101301,R2660,Business Rates,Eden District Council,"224,000.00"
202006,Apr,202006101327,R2210,Planned Survey External Maintenance,Penrith Scaffolding Services Limited,700.00
202006,Apr,202006101438,R2660,Business Rates,Allerdale Borough Council,"16,217.50"
202006,Apr,202006101439,R2660,Business Rates,Allerdale Borough Council,785.93
202006,Apr,202006101440,R2610,Estates Leases,Allerdale Borough Council,512.50
202006,Apr,202006101468,R1610,CID Training,Trainrite Ltd,720.00
202006,Apr,202006101523,R2210,Planned Survey External Maintenance,Frederick Potts and Sons Ltd,690.00
202006,Apr,202006101525,R2205,Planned Survey Non Structural Maintenance,Frederick Potts and Sons Ltd,550.00
202006,Apr,202006101568,C2830,Professional Fees,Baker Mallett LLP,827.24
202006,Apr,202006101584,R2660,Business Rates,Copeland Borough Council,"53,760.00"
202006,Apr,202006101585,R2660,Business Rates,Copeland Borough Council,885.73
202006,Apr,202006101623,R2715,Clinical Waste,PHS Group Plc,"3,455.64"
202006,Apr,202006101625,R2715,Clinical Waste,PHS Group Plc,"2,513.13"
202006,Apr,202006101627,R2715,Clinical Waste,PHS Group Plc,"1,635.88"
202006,Apr,202006101628,R2715,Clinical Waste,PHS Group Plc,594.84
202006,Apr,202006101629,R2715,Clinical Waste,PHS Group Plc,821.28
202006,Apr,202006101636,R2715,Clinical Waste,PHS Group Plc,889.32
202006,Apr,202006101823,R3120,Vehicle Maintenance - Parts Purchase,Wurth UK Ltd,"1,520.76"
202006,Apr,202006101824,R3120,Vehicle Maintenance - Parts Purchase,Wurth UK Ltd,"1,150.60"
202006,Apr,202006102133,R3980,Vehicle Road Fund Licenses,Post Office Counters Ltd,"1,165.00"
202006,Apr,202006102140,R2680,PFI Occupancy Charges,West Cumbria Estates Management Limited,"105,000.00"
202006,Apr,202006102166,R2500,Oil,Certas Energy Limited,628.50
202006,Apr,202006102224,R3120,Vehicle Maintenance - Parts Purchase,Arnold Clark Automobiles Ltd,"1,742.41"
202006,Apr,202006102227,R3120,Vehicle Maintenance - Parts Purchase,Arnold Clark Automobiles Ltd,697.49
202006,Apr,202006102230,R3120,Vehicle Maintenance - Parts Purchase,Arnold Clark Automobiles Ltd,697.49
202006,Apr,202006102237,R3120,Vehicle Maintenance - Parts Purchase,Arnold Clark Automobiles Ltd,979.12
202006,Apr,202006102238,R3120,Vehicle Maintenance - Parts Purchase,Arnold Clark Automobiles Ltd,715.15
202006,Apr,202006102239,R3120,Vehicle Maintenance - Parts Purchase,Arnold Clark Automobiles Ltd,715.15
202006,Apr,202006102240,R3120,Vehicle Maintenance - Parts Purchase,Arnold Clark Automobiles Ltd,"1,911.50"
202006,Apr,202006102254,R3120,Vehicle Maintenance - Parts Purchase,Arnold Clark Automobiles Ltd,869.82
202006,Apr,202006102260,R3120,Vehicle Maintenance - Parts Purchase,Arnold Clark Automobiles Ltd,682.69
202006,Apr,202006102377,C3905,Vehicle Adaptations - Capital,Portable Multimedia Ltd,"2,000.00"
202006,Apr,202006102400,R3120,Vehicle Maintenance - Parts Purchase,Euro Car Parts,508.89
202006,Apr,202006102432,R3210,Police Vehicle Recovery & Transport,FMG Support (RRRM) Ltd,"3,456.00"
202006,Apr,202006102468,R2730,Refuse,Biffa Waste Services Limited,728.16
202006,Apr,202006102470,R2730,Refuse,Biffa Waste Services Limited,943.50
202006,Apr,202006102471,R2730,Refuse,Biffa Waste Services Limited,642.00
202006,Apr,202006102686,R3120,Vehicle Maintenance - Parts Purchase,P V Dobson and  Sons Motors Limited,"1,607.87"
202006,Apr,202006102687,R3120,Vehicle Maintenance - Parts Purchase,P V Dobson and  Sons Motors Limited,798.70
202006,Apr,202006102688,R3120,Vehicle Maintenance - Parts Purchase,P V Dobson and  Sons Motors Limited,"1,492.05"
202006,Apr,202006102689,R3120,Vehicle Maintenance - Parts Purchase,P V Dobson and  Sons Motors Limited,"1,068.20"
202006,Apr,202006102699,R2660,Business Rates,South Lakeland District Council,"3,193.60"
202006,Apr,202006102700,R2660,Business Rates,South Lakeland District Council,598.80
202006,Apr,202006102703,R2660,Business Rates,South Lakeland District Council,"101,888.00"
202006,Apr,202006102704,R2660,Business Rates,South Lakeland District Council,"8,867.05"
202006,Apr,202006102706,R2660,Business Rates,South Lakeland District Council,648.70
202006,Apr,202006102707,R2661,Council Tax,South Lakeland District Council,"1,938.53"
202006,Apr,202006102728,R7006,North West Ambulance Service - Estates Management Collaboration,FTS Fire and  Security Ltd,568.00
202006,Apr,202006102733,R7006,North West Ambulance Service - Estates Management Collaboration,FTS Fire and  Security Ltd,828.44
202006,Apr,202006102737,R2284,Planned Servicing Electrical Equipment Testing (PAT),FTS Fire and  Security Ltd,"1,684.00"
202006,Apr,202006102740,R7006,North West Ambulance Service - Estates Management Collaboration,FTS Fire and  Security Ltd,"1,294.50"
202006,Apr,202006102741,R7006,North West Ambulance Service - Estates Management Collaboration,FTS Fire and  Security Ltd,735.08
202006,Apr,202006102871,R2660,Business Rates,Barrow Borough Council,"171,520.00"
202006,Apr,202006102913,R3120,Vehicle Maintenance - Parts Purchase,E K Motor Factors Ltd,548.00
202006,Apr,202006102986,R3120,Vehicle Maintenance - Parts Purchase,Guy Perry Ltd,"1,282.29"
202006,Apr,202006103185,R3120,Vehicle Maintenance - Parts Purchase,ECCO Safety Group UK Ltd,"3,979.45"
202006,Apr,202006103186,R3120,Vehicle Maintenance - Parts Purchase,ECCO Safety Group UK Ltd,"3,979.45"
202006,Apr,202006103187,R3120,Vehicle Maintenance - Parts Purchase,ECCO Safety Group UK Ltd,"3,979.45"
202006,Apr,202006103188,R3120,Vehicle Maintenance - Parts Purchase,Volkswagen Group UK Ltd,717.76
202006,Apr,202006103202,R3120,Vehicle Maintenance - Parts Purchase,Volkswagen Group UK Ltd,559.00
202006,Apr,202006103205,R3120,Vehicle Maintenance - Parts Purchase,Volkswagen Group UK Ltd,574.49
202006,Apr,202006103499,R2845,Legal Fees (Property Sale),DSSR Consulting Engineers,"6,500.00"
202006,Apr,202006103500,R2740,Destruction of Confidential Waste,Shred it,800.00
202006,Apr,202006103518,C3900,Vehicle Purchases - Capital,Mercedes-Benz Vans UK Ltd,"33,574.25"
202006,Apr,202006103523,R2610,Estates Leases,Ulverston Properties Limited,820.83
202006,Apr,202006103526,R2830,Professional Fees,Ward Hadaway,"1,544.50"
202006,Apr,202006103527,R2830,Professional Fees,Ward Hadaway,"2,000.00"
202006,Apr,202006103577,R2830,Professional Fees,3i Studio Ltd,"4,015.00"
202006,Apr,202006103640,R2610,Estates Leases,National Crime Agency,547.12
202006,Apr,202006103641,R2610,Estates Leases,National Crime Agency,"20,000.00"
202006,Apr,202006103698,R3120,Vehicle Maintenance - Parts Purchase,Ford Motor Co Ltd T/A Parts Plus,"1,150.97"
202006,Apr,202006103704,R3120,Vehicle Maintenance - Parts Purchase,Ford Motor Co Ltd T/A Parts Plus,553.60
202006,Apr,202006103727,R3120,Vehicle Maintenance - Parts Purchase,Ford Motor Co Ltd T/A Parts Plus,"1,461.77"
202006,Apr,202006103886,R2550,Metered Water,Castle Water Limited,"6,449.81"
202006,Apr,202006103887,R2565,Sewerage & Environmental Services,Castle Water Limited,"8,432.53"
202006,Apr,202006103888,R2510,Electricity,EDF Energy,"6,509.48"
202006,Apr,202006103889,R2510,Electricity,EDF Energy,"3,668.58"
202006,Apr,202006103890,R2510,Electricity,EDF Energy,"12,032.86"
202006,Apr,202006103891,R2510,Electricity,EDF Energy,"2,420.45"
202006,Apr,202006103892,R2510,Electricity,EDF Energy,"16,646.70"
202006,Apr,202006103893,R2530,Climate Change Levy,EDF Energy,"1,153.24"
202006,Apr,202006103895,R2510,Electricity,EDF Energy,"16,646.70"
202006,Apr,202006103896,R2530,Climate Change Levy,EDF Energy,"1,153.24"
202006,Apr,202006103922,R2286,Planned Servicing Generators/UPS,Power Tecnique Limited,"9,162.00"
202006,Apr,202006103923,R2286,Planned Servicing Generators/UPS,Power Tecnique Limited,"5,505.50"
202006,Apr,202006103924,R2286,Planned Servicing Generators/UPS,Power Tecnique Limited,"4,404.40"
202006,Apr,202006104304,R3020,Workshop Equipment & Tools - Servicing / Repairs,Autodata Ltd,"1,428.00"
202006,Apr,202006104425,R3120,Vehicle Maintenance - Parts Purchase,Castrol (UK) Ltd,"2,065.44"
202006,Apr,202006104435,R3120,Vehicle Maintenance - Parts Purchase,Lloyd Motors Ltd,528.71
202006,Apr,202006104441,R3120,Vehicle Maintenance - Parts Purchase,Lloyd Motors Ltd,565.08
202006,Apr,202006104443,R3120,Vehicle Maintenance - Parts Purchase,Lloyd Motors Ltd,505.10
202006,Apr,202006104453,R3120,Vehicle Maintenance - Parts Purchase,Lloyd Motors Ltd,"1,287.24"
202006,Apr,202006104454,R3120,Vehicle Maintenance - Parts Purchase,Lloyd Motors Ltd,521.06
202006,Apr,202006104456,R3120,Vehicle Maintenance - Parts Purchase,Lloyd Motors Ltd,690.38
202006,Apr,202006104457,R3120,Vehicle Maintenance - Parts Purchase,Lloyd Motors Ltd,792.23
202006,Apr,202006104458,R3120,Vehicle Maintenance - Parts Purchase,Lloyd Motors Ltd,690.38
202006,Apr,202006104459,R3120,Vehicle Maintenance - Parts Purchase,Lloyd Motors Ltd,792.23
202006,Apr,202006104460,R3120,Vehicle Maintenance - Parts Purchase,Lloyd Motors Ltd,792.23
202006,Apr,202006104461,R3120,Vehicle Maintenance - Parts Purchase,Lloyd Motors Ltd,690.38
202006,Apr,202006104462,R3120,Vehicle Maintenance - Parts Purchase,Lloyd Motors Ltd,690.38
202006,Apr,202006104463,R3120,Vehicle Maintenance - Parts Purchase,Lloyd Motors Ltd,690.38
202006,Apr,202006104464,R3120,Vehicle Maintenance - Parts Purchase,Lloyd Motors Ltd,792.23
202006,Apr,202006104465,R3120,Vehicle Maintenance - Parts Purchase,Lloyd Motors Ltd,792.23
202006,Apr,202006104533,R2505,Gas,Corona Energy,"14,307.00"
202006,Apr,202006104534,R2530,Climate Change Levy,Corona Energy,"1,610.61"
202006,Apr,202006104631,R3510,Vehicle Fuel,Allstar Business Solutions Ltd,"1,855.18"
202006,Apr,202006104632,R3510,Vehicle Fuel,Allstar Business Solutions Ltd,513.85
202006,Apr,202006104633,R3510,Vehicle Fuel,Allstar Business Solutions Ltd,826.56
202006,Apr,202006104634,R3510,Vehicle Fuel,Allstar Business Solutions Ltd,504.58
202006,Apr,202006104635,R3510,Vehicle Fuel,Allstar Business Solutions Ltd,626.08
202006,Apr,202006104636,R3510,Vehicle Fuel,Allstar Business Solutions Ltd,"52,113.04"
202006,Apr,202006104638,R3510,Vehicle Fuel,Allstar Business Solutions Ltd,"2,235.69"
202006,Apr,202006104639,R3510,Vehicle Fuel,Allstar Business Solutions Ltd,"1,099.56"
202006,Apr,202006101910,R3745,Travel - Public Transport,Capita Travel and Events,-631.60
202006,Apr,202006100025,R5600,Postage Costs,Pitney Bowes Ltd,"2,651.90"
202006,Apr,202006101093,R4090,The information is confidential or would attract an exemption under the Freedom of Information Act e.g. where disclosure could be prejudicial to the commercial interests of any person including the authority,Redacted,515.85
202006,Apr,202006101094,R4090,The information is confidential or would attract an exemption under the Freedom of Information Act e.g. where disclosure could be prejudicial to the commercial interests of any person including the authority,Redacted,538.14
202006,Apr,202006101095,R4090,The information is confidential or would attract an exemption under the Freedom of Information Act e.g. where disclosure could be prejudicial to the commercial interests of any person including the authority,Redacted,800.22
202006,Apr,202006101097,R4090,The information is confidential or would attract an exemption under the Freedom of Information Act e.g. where disclosure could be prejudicial to the commercial interests of any person including the authority,Redacted,588.81
202006,Apr,202006101307,R6870,Subsistence - Training,Brooklands Guest House,640.00
202006,Apr,202006101868,R6850,Hotel Accommodation - Training,Capita Travel and Events,900.00
202006,Apr,202006101869,R6850,Hotel Accommodation - Training,Capita Travel and Events,900.00
202006,Apr,202006101871,R6850,Hotel Accommodation - Training,Capita Travel and Events,758.20
202006,Apr,202006101872,R6850,Hotel Accommodation - Training,Capita Travel and Events,515.50
202006,Apr,202006101938,R3745,Travel - Public Transport,Capita Travel and Events,-700.20
202006,Apr,202006101973,R6850,Hotel Accommodation - Training,Capita Travel and Events,600.00
202006,Apr,202006101978,R6850,Hotel Accommodation - Training,Capita Travel and Events,"3,032.00"
202006,Apr,202006102802,R3670,Vehicle Hire - Car Share Scheme,Enterprise Car Club,"3,720.00"
202006,Apr,202006103449,R6850,Hotel Accommodation - Training,Police and Crime Commissioner for Greater Manchester,"1,672.00"
202006,Apr,202006104218,R5600,Postage Costs,Royal Mail,787.00
202006,Apr,202006102627,R1720,Other Support Function Training,University of Cumbria,550.00
202006,Apr,202006103169,R1830,Training Equipment & Materials,Civil Defence Supply Limited,"2,793.00"
202006,Apr,202006104302,R1610,CID Training,College of Policing (NPIA),539.00
202006,Apr,202006104521,R1610,CID Training,The Kingsham Consultancy Ltd (Dr A McKee),"1,000.00"
202006,Apr,202006104366,R5350,Web Design & Running Costs,Zengenti Ltd,"5,600.00"
202006,Apr,202006104695,R4175,Print Unit - Digital Copier Click Charges,Xerox UK Ltd,"1,777.74"
202006,Apr,202006104217,R5600,Postage Costs,Royal Mail,"1,664.68"
202006,Apr,202006104220,R5600,Postage Costs,Royal Mail,943.53
202006,Apr,202006104222,R5600,Postage Costs,Royal Mail,"1,060.06"
202006,Apr,202006100867,R4922,SARC Counselling Services,Safety Net UK,"33,306.25"
202006,Apr,202006101298,R2660,Business Rates,Eden District Council,"4,191.60"
202006,Apr,202006101302,R6785,Contributions - PCC Commissioning Services,Eden District Council,"6,000.00"
202006,Apr,202006101587,R6785,Contributions - PCC Commissioning Services,Time to Change (West Cumbria) Project CIC,"9,930.25"
202006,Apr,202006101588,R6785,Contributions - PCC Commissioning Services,Time to Change (West Cumbria) Project CIC,"9,930.25"
202006,Apr,202006101709,R4920,SARC Doctors,G4S Health Services (UK) Ltd,"19,575.04"
202006,Apr,202006101710,R4920,SARC Doctors,G4S Health Services (UK) Ltd,"19,575.04"
202006,Apr,202006101712,R4920,SARC Doctors,G4S Health Services (UK) Ltd,"19,575.04"
202006,Apr,202006101713,R4920,SARC Doctors,G4S Health Services (UK) Ltd,"19,575.04"
202006,Apr,202006101714,R4920,SARC Doctors,G4S Health Services (UK) Ltd,"19,575.04"
202006,Apr,202006101854,R6785,Contributions - PCC Commissioning Services,Victim Support,"73,369.38"
202006,Apr,202006101855,R6785,Contributions - PCC Commissioning Services,Victim Support,"14,191.25"
202006,Apr,202006102645,R6785,Contributions - PCC Commissioning Services,Resource Creatives Enterprises Ltd,692.44
202006,Apr,202006102646,R6785,Contributions - PCC Commissioning Services,Resource Creatives Enterprises Ltd,692.44
202006,Apr,202006102867,R6785,Contributions - PCC Commissioning Services,Womens Community Matters,"10,088.76"
202006,Apr,202006102868,R6785,Contributions - PCC Commissioning Services,Womens Community Matters,"8,153.20"
202006,Apr,202006102869,R6785,Contributions - PCC Commissioning Services,Womens Community Matters,"3,591.18"
202006,Apr,202006103354,R0500,Agency Staff,Comensura Ltd,902.06
202006,Apr,202006103361,R0500,Agency Staff,Comensura Ltd,902.06
202006,Apr,202006104176,R6710,Subscriptions,Independent Custody Visiting Association ICVA,"1,000.00"
202006,Apr,202006104201,R6785,Contributions - PCC Commissioning Services,Remedi Restorative Services,"9,041.67"
202006,Apr,202006104202,R6785,Contributions - PCC Commissioning Services,Remedi Restorative Services,"2,600.00"
202006,Apr,202006104355,R6710,Subscriptions,CPOSA,"3,074.00"
202006,Apr,202006101008,R7090,Other Collaboration Payments,Cumbria County Council,"10,000.00"
202006,Apr,202006101807,R7090,Other Collaboration Payments,Police and Crime Commissioner for Cheshire,"5,266.38"
202006,Apr,202006101809,R7090,Other Collaboration Payments,Police and Crime Commissioner for Cheshire,"9,128.66"
202006,Apr,202006102054,R7090,Other Collaboration Payments,Police and Crime Commissioner for Durham Constabulary,"20,667.20"
202006,Apr,202006102612,R7090,Other Collaboration Payments,Police and Crime Commissioner for Merseyside,"6,803.93"
202006,Apr,202006104008,R7090,Other Collaboration Payments,Police and Crime Commissioner for Lancashire,"7,500.98"
202006,Apr,202006104009,R7090,Other Collaboration Payments,Police and Crime Commissioner for Lancashire,"10,603.95"
202006,Apr,202006100313,R5950,Disclosure of information would breach the Data Protection Act 1998 ,Redacted,"1,049.53"
202006,Apr,202006101375,R5950,Disclosure of information would breach the Data Protection Act 1998 ,Redacted,541.88
202006,Apr,202006101376,R5950,Disclosure of information would breach the Data Protection Act 1998 ,Redacted,789.09
202006,Apr,202006101647,R5835,Operational Equipment - Testing Kits & Consumables,Scenesafe,580.92
202006,Apr,202006101732,R4710,Forensic Analysis - Serious Crime,Key Forensic Services Ltd (Orange UK Holdings Ltd),"2,128.15"
202006,Apr,202006101735,R4705,Forensic Analysis - Over Prescribed Limit,Key Forensic Services Ltd (Orange UK Holdings Ltd),"1,957.50"
202006,Apr,202006101736,R4705,Forensic Analysis - Over Prescribed Limit,Key Forensic Services Ltd (Orange UK Holdings Ltd),"2,275.78"
202006,Apr,202006101737,R4705,Forensic Analysis - Over Prescribed Limit,Key Forensic Services Ltd (Orange UK Holdings Ltd),"2,210.53"
202006,Apr,202006101738,R4710,Forensic Analysis - Serious Crime,Key Forensic Services Ltd (Orange UK Holdings Ltd),"3,139.60"
202006,Apr,202006101739,R4715,Forensic Analysis - Volume Crime,Key Forensic Services Ltd (Orange UK Holdings Ltd),"1,647.94"
202006,Apr,202006101742,R4710,Forensic Analysis - Serious Crime,Key Forensic Services Ltd (Orange UK Holdings Ltd),"1,412.05"
202006,Apr,202006101743,R4710,Forensic Analysis - Serious Crime,Key Forensic Services Ltd (Orange UK Holdings Ltd),"6,118.45"
202006,Apr,202006101747,R4715,Forensic Analysis - Volume Crime,Key Forensic Services Ltd (Orange UK Holdings Ltd),604.94
202006,Apr,202006101748,R4705,Forensic Analysis - Over Prescribed Limit,Key Forensic Services Ltd (Orange UK Holdings Ltd),"2,327.25"
202006,Apr,202006101749,R4705,Forensic Analysis - Over Prescribed Limit,Key Forensic Services Ltd (Orange UK Holdings Ltd),"2,985.56"
202006,Apr,202006101751,R4715,Forensic Analysis - Volume Crime,Key Forensic Services Ltd (Orange UK Holdings Ltd),802.90
202006,Apr,202006101752,R4715,Forensic Analysis - Volume Crime,Key Forensic Services Ltd (Orange UK Holdings Ltd),"2,726.00"
202006,Apr,202006102661,R5950,Disclosure of information would breach the Data Protection Act 1998 ,Redacted,602.72
202006,Apr,202006102673,R5950,Disclosure of information would breach the Data Protection Act 1998 ,Redacted,887.83
202006,Apr,202006103494,R5950,Disclosure of information would breach the Data Protection Act 1998 ,Redacted,625.16
202006,Apr,202006103624,R4735,Communication Auto Services - OS,Home Office,"25,246.96"
202006,Apr,202006104365,R4820,CHIS Payments & Other Rewards,DO NOT USE USE 20340 Metropolitan Police,"1,708.12"
202006,Apr,202006104392,R5950,Disclosure of information would breach the Data Protection Act 1998 ,Redacted,996.04
202006,Apr,202006104402,R4720,Forensic Analysis - PACE / DNA,Eurofins Forensic Services Ltd,"2,524.68"
202006,Apr,202006104406,R4720,Forensic Analysis - PACE / DNA,Eurofins Forensic Services Ltd,985.89
202006,Apr,202006100002,R1630,Other Operational Training,Berla Corporation,"3,973.99"
202006,Apr,202006100108,R5912,Police Dogs - Feed,Royal Canin,576.40
202006,Apr,202006100182,R4630,Detained Persons - Appropriate Adult Services,Child Action Northwest,"7,896.00"
202006,Apr,202006101260,R5790,Operational Equipment - Audio / Video Equipment,PSS Home Entertainment Limited,895.00
202006,Apr,202006101332,R5916,Police Dogs - Vets Fees,Frame Swift and Partners LLP,"1,209.00"
202006,Apr,202006101470,R4625,Detained Persons - Laundry,Shortridge Ltd,542.48
202006,Apr,202006101471,R4625,Detained Persons - Laundry,Shortridge Ltd,894.68
202006,Apr,202006101661,R4620,Detained Persons - Consumables,Scenesafe,525.00
202006,Apr,202006101711,R4900,Custody Medical Contract,G4S Health Services (UK) Ltd,"221,422.19"
202006,Apr,202006101715,R4900,Custody Medical Contract,G4S Health Services (UK) Ltd,"109,584.13"
202006,Apr,202006101806,R5918,Police Dogs - Other Maintenance,Safe Solutions (Safe4) Ltd,"2,800.00"
202006,Apr,202006101810,R7060,Underwater Search,Police and Crime Commissioner for Cheshire,"43,403.09"
202006,Apr,202006102052,R4625,Detained Persons - Laundry,Shortridge Ltd,906.33
202006,Apr,202006102109,R4605,Detained Persons - Clothing,Charles Fellows Supplies Limited,522.06
202006,Apr,202006102375,R4960,Disclosure of information would breach the Data Protection Act 1998,Redacted,744.80
202006,Apr,202006103162,R5980,Firearms Equipment,Primetake Ltd,"6,499.00"
202006,Apr,202006103166,R5865,Operational Equipment - Other,Civil Defence Supply Limited,840.00
202006,Apr,202006103168,R5865,Operational Equipment - Other,Civil Defence Supply Limited,560.00
202006,Apr,202006103172,R5865,Operational Equipment - Other,Civil Defence Supply Limited,"26,196.50"
202006,Apr,202006103589,R5760,Operational Equipment - TASER,Axon Public Safety UK Limited,825.00
202006,Apr,202006103591,R5760,Operational Equipment - TASER,Axon Public Safety UK Limited,"22,000.00"
202006,Apr,202006103648,R4950,Interpreters Fees - Face to Face,Capita Translation and Interpreting (Applied Language Solutions Ltd),"2,971.89"
202006,Apr,202006103649,R4955,Interpreters Fees - Telephone,Capita Translation and Interpreting (Applied Language Solutions Ltd),948.33
202006,Apr,202006103921,R5980,Firearms Equipment,GMK Limited,"9,581.50"
202006,Apr,202006104029,R4940,First Aid Equipment / Consumables,The ATTAC Group,725.00
202006,Apr,202006104213,R1630,Other Operational Training,Police and Crime Commissioner for South Yorkshire,920.00
202006,Apr,202006104292,R5980,Firearms Equipment,Edgar Brothers,"1,079.50"
202006,Apr,202006104293,R5980,Firearms Equipment,Edgar Brothers,"2,100.00"
202006,Apr,202006104537,R7295,Contribution to NPAS,Police and Crime Commissioner for West Yorkshire,"9,975.00"
202006,Apr,202006100031,R4940,First Aid Equipment / Consumables,Arrow County Supplies,"4,953.60"
202006,Apr,202006100034,R4940,First Aid Equipment / Consumables,Arrow County Supplies,"5,198.60"
202006,Apr,202006100036,R2725,Cleaning Materials,Arrow County Supplies,"1,238.80"
202006,Apr,202006100040,R4940,First Aid Equipment / Consumables,Arrow County Supplies,"4,049.82"
202006,Apr,202006100092,C5110,Networks Hardware Purchase,SCC (Specialist Computer Centre),"127,650.00"
202006,Apr,202006100096,R5110,Networks Hardware Purchase,SCC (Specialist Computer Centre),"4,197.70"
202006,Apr,202006100097,R5110,Networks Hardware Purchase,SCC (Specialist Computer Centre),"2,833.00"
202006,Apr,202006100208,R2700,Cleaning Contract,Bulloughs Cleaning Services Ltd,"1,042.69"
202006,Apr,202006100209,R2700,Cleaning Contract,Bulloughs Cleaning Services Ltd,"1,306.00"
202006,Apr,202006100375,R5110,Networks Hardware Purchase,Avoira Limited,"2,762.63"
202006,Apr,202006100376,R5110,Networks Hardware Purchase,Avoira Limited,"3,375.00"
202006,Apr,202006100378,R5110,Networks Hardware Purchase,Avoira Limited,982.95
202006,Apr,202006100470,R2410,Minor Works,Carigiet Cowen,600.00
202006,Apr,202006100616,R2410,Minor Works,Carlisle Glass Longhorn,"1,110.00"
202006,Apr,202006100617,R4020,Office Sundries,Tech 4 office equipment LTD,"3,481.44"
202006,Apr,202006100618,R4200,Photocopier Machines - Rental Charges,Tech 4 office equipment LTD,"1,920.00"
202006,Apr,202006101015,R4940,First Aid Equipment / Consumables,Thomas Graham and Sons Limited,966.28
202006,Apr,202006101017,R4940,First Aid Equipment / Consumables,Thomas Graham and Sons Limited,"2,204.30"
202006,Apr,202006101018,R4940,First Aid Equipment / Consumables,Thomas Graham and Sons Limited,"1,226.16"
202006,Apr,202006101020,R4940,First Aid Equipment / Consumables,Thomas Graham and Sons Limited,586.85
202006,Apr,202006101021,R4940,First Aid Equipment / Consumables,Thomas Graham and Sons Limited,"19,960.00"
202006,Apr,202006101022,R4940,First Aid Equipment / Consumables,Thomas Graham and Sons Limited,"2,060.48"
202006,Apr,202006101023,R4940,First Aid Equipment / Consumables,Thomas Graham and Sons Limited,"2,173.62"
202006,Apr,202006101024,R4940,First Aid Equipment / Consumables,Thomas Graham and Sons Limited,907.97
202006,Apr,202006101025,R4940,First Aid Equipment / Consumables,Thomas Graham and Sons Limited,"1,074.08"
202006,Apr,202006101026,R4940,First Aid Equipment / Consumables,Thomas Graham and Sons Limited,"2,020.20"
202006,Apr,202006101028,R4940,First Aid Equipment / Consumables,Thomas Graham and Sons Limited,"7,320.00"
202006,Apr,202006101029,R4940,First Aid Equipment / Consumables,Thomas Graham and Sons Limited,701.44
202006,Apr,202006101030,R4940,First Aid Equipment / Consumables,Thomas Graham and Sons Limited,"1,822.21"
202006,Apr,202006101031,R4940,First Aid Equipment / Consumables,Thomas Graham and Sons Limited,"2,666.70"
202006,Apr,202006101034,R4940,First Aid Equipment / Consumables,Thomas Graham and Sons Limited,"2,666.70"
202006,Apr,202006101035,R4940,First Aid Equipment / Consumables,Thomas Graham and Sons Limited,"1,683.75"
202006,Apr,202006101037,R4940,First Aid Equipment / Consumables,Thomas Graham and Sons Limited,"1,975.00"
202006,Apr,202006101323,R4155,External Printing,H and H Reed's Printers Ltd,733.00
202006,Apr,202006101677,R4940,First Aid Equipment / Consumables,Scenesafe,"2,950.00"
202006,Apr,202006102378,R4940,First Aid Equipment / Consumables,SMI Int Group Ltd,"2,155.68"
202006,Apr,202006102379,R4940,First Aid Equipment / Consumables,SMI Int Group Ltd,"2,155.68"
202006,Apr,202006102498,R4940,First Aid Equipment / Consumables,Arco Limited,836.40
202006,Apr,202006103136,R5865,Operational Equipment - Other,Cromwell Group Ltd,810.80
202006,Apr,202006103348,R4940,First Aid Equipment / Consumables,CID Hygiene,"4,671.00"
202006,Apr,202006103349,R4940,First Aid Equipment / Consumables,CID Hygiene,503.10
202006,Apr,202006103533,R4940,First Aid Equipment / Consumables,Bidfood,"1,473.26"
202006,Apr,202006103585,R5760,Operational Equipment - TASER,Axon Public Safety UK Limited,"10,525.00"
202006,Apr,202006103935,R4940,First Aid Equipment / Consumables,HBS Healthcare,"4,950.00"
202006,Apr,202006103936,R4940,First Aid Equipment / Consumables,HBS Healthcare,"5,000.00"
202006,Apr,202006103937,R4940,First Aid Equipment / Consumables,HBS Healthcare,"28,500.00"
202006,Apr,202006103938,R4940,First Aid Equipment / Consumables,HBS Healthcare,"25,000.00"
202006,Apr,202006103939,R4940,First Aid Equipment / Consumables,HBS Healthcare,"12,865.00"
202006,Apr,202006104021,R4300,Furniture - General,Brysdales Ltd,"3,824.00"
202006,Apr,202006104351,R5210,Radio / Airwave Equipment - Purchases,Motorola Solutions UK Ltd,"3,500.00"
202006,Apr,202006104573,R4940,First Aid Equipment / Consumables,Banner Group Limited,"1,210.00"
202006,Apr,202006104712,R4940,First Aid Equipment / Consumables,City Electrical Factors Ltd,560.00
202006,Apr,202006104720,R4940,First Aid Equipment / Consumables,City Electrical Factors Ltd,"1,490.00"
202006,Apr,202006101214,B2312,Inventories/Stocks - Uniforms - Purchases,Earle International,502.50
202006,Apr,202006101353,R4000,Office Equipment - Purchase,Heatons Group Ltd,"1,243.75"
202006,Apr,202006101356,R4000,Office Equipment - Purchase,Heatons Group Ltd,981.26
202006,Apr,202006101652,B2302,Inventories/Stocks - General / Admin Equipment - Purchases,Scenesafe,"2,288.07"
202006,Apr,202006101657,B2302,Inventories/Stocks - General / Admin Equipment - Purchases,Scenesafe,"1,206.86"
202006,Apr,202006102366,B2312,Inventories/Stocks - Uniforms - Purchases,Yaffy (MWUK Ltd),"2,451.00"
202006,Apr,202006102367,B2312,Inventories/Stocks - Uniforms - Purchases,Yaffy (MWUK Ltd),"2,475.00"
202006,Apr,202006102546,B2312,Inventories/Stocks - Uniforms - Purchases,Keela International Ltd,"1,061.06"
202006,Apr,202006102585,B2312,Inventories/Stocks - Uniforms - Purchases,Ioma Clothing Co Ltd,656.95
202006,Apr,202006102596,B2312,Inventories/Stocks - Uniforms - Purchases,MC Products UK Ltd,935.00
202006,Apr,202006102620,B2312,Inventories/Stocks - Uniforms - Purchases,Bennett Safetywear Ltd,705.05
202006,Apr,202006102985,R4302,Furniture - DSE Specialist Furniture,Centric Office Solutions Limited,600.00
202006,Apr,202006103596,B2312,Inventories/Stocks - Uniforms - Purchases,Mehler Vario System GmbH,"3,713.60"
202006,Apr,202006103597,B2312,Inventories/Stocks - Uniforms - Purchases,Mehler Vario System GmbH,978.40
202006,Apr,202006103598,B2312,Inventories/Stocks - Uniforms - Purchases,Mehler Vario System GmbH,"1,786.20"
202006,Apr,202006103599,B2312,Inventories/Stocks - Uniforms - Purchases,Mehler Vario System GmbH,"3,164.60"
202006,Apr,202006103600,B2312,Inventories/Stocks - Uniforms - Purchases,Mehler Vario System GmbH,"1,334.80"
202006,Apr,202006103601,B2312,Inventories/Stocks - Uniforms - Purchases,Mehler Vario System GmbH,713.60
202006,Apr,202006104200,B2312,Inventories/Stocks - Uniforms - Purchases,Niton Equipment Ltd,"1,669.63"
202006,Apr,202006104307,R4400,Books & Publications,LexisNexis,"16,026.00"
202006,Apr,202006104309,B2312,Inventories/Stocks - Uniforms - Purchases,SBI TacPro,"2,027.20"
202006,Apr,202006104313,B2312,Inventories/Stocks - Uniforms - Purchases,SBI TacPro,"1,082.80"
202006,Apr,202006104314,B2312,Inventories/Stocks - Uniforms - Purchases,SBI TacPro,"2,165.60"
202006,Apr,202006104315,B2312,Inventories/Stocks - Uniforms - Purchases,SBI TacPro,"4,054.40"
202006,Apr,202006104316,B2312,Inventories/Stocks - Uniforms - Purchases,SBI TacPro,526.86
202006,Apr,202006104369,B2312,Inventories/Stocks - Uniforms - Purchases,Price Western Leather Co Ltd,"1,393.50"
202006,Apr,202006104540,B2312,Inventories/Stocks - Uniforms - Purchases,Wakefield Shirt Group (William Sugden & Sons Ltd),679.00
202006,Apr,202006104541,B2312,Inventories/Stocks - Uniforms - Purchases,Wakefield Shirt Group (William Sugden & Sons Ltd),519.57
202006,Apr,202006102556,B4004,Disclosure of information would breach the Data Protection Act 1998,Redacted,"3,500.00"
202006,Apr,202006102557,B4004,Disclosure of information would breach the Data Protection Act 1998,Redacted,700.00
202006,Apr,202006102559,B4003,Disclosure of information would breach the Data Protection Act 1998,Redacted,"2,500.00"
202006,Apr,202006102583,B4004,Disclosure of information would breach the Data Protection Act 1998,Redacted,"6,000.00"
202006,Apr,202006103181,B4004,Provision for Insurance Liabilities - Drawdown from Provision - Third Party Costs,Plexus Law,"7,675.00"
202006,Apr,202006103440,B4003,Disclosure of information would breach the Data Protection Act 1998,Redacted,"4,885.00"
202006,Apr,202006103441,B4004,Disclosure of information would breach the Data Protection Act 1998,Redacted,"1,350.00"
202006,Apr,202006104291,B4003,Disclosure of information would breach the Data Protection Act 1998,Redacted,"1,000.00"
202006,May,202006103372,R0500,Agency Staff,Comensura Ltd,783.72
202006,May,202006103373,R0500,Agency Staff,Comensura Ltd,"1,032.80"
202006,May,202006103374,R0500,Agency Staff,Comensura Ltd,"1,065.13"
202006,May,202006103377,R0500,Agency Staff,Comensura Ltd,867.69
202006,May,202006103378,R0500,Agency Staff,Comensura Ltd,"1,032.80"
202006,May,202006103379,R0500,Agency Staff,Comensura Ltd,"2,219.45"
202006,May,202006103380,R0500,Agency Staff,Comensura Ltd,"1,044.67"
202006,May,202006101520,R3740,Disclosure of information would breach the Data Protection Act 1998,Redacted,976.50
202006,May,202006101522,R6860,Disclosure of information would breach the Data Protection Act 1998,Redacted,744.00
202006,May,202006104023,R3740,Disclosure of information would breach the Data Protection Act 1998,Redacted,"1,205.10"
202006,May,202006100022,R7290,Other Third Party Payments,Police and Crime Commissioner for Hertfordshire,"1,860.00"
202006,May,202006101156,R4880,Ex-Gratia Payments,Exgratia Payments,"1,150.00"
202006,May,202006101716,R7390,Other Insurance,Aon UK Ltd,"4,650.00"
202006,May,202006103522,R6824,NatWest Corporate Card Payments,Natwest Corporate Card,"2,608.25"
202006,May,202006103570,R7040,Payroll Services,MHR International UK LTD,"15,856.50"
202006,May,202006103579,R6830,External Audit Fee,Grant Thornton UK LLP,"2,887.00"
202006,May,202006104173,R7042,Pension Services,XPS Administration Limited T/A XPS Administration,"8,911.17"
202006,May,202006104340,R3660,The information is confidential or would attract an exemption under the Freedom of Information Act e.g. where disclosure could be prejudicial to the commercial interests of any person including the authority ,Redacted,"1,980.00"
202006,May,202006104705,R5975,Other Operational Expenses,"Reshape (Re, sexual, harm, awareness, prevention & education)","5,000.00"
202006,May,202006104523,R2600,Rent,Reed Rains,750.00
202006,May,202006100099,R5320,Computer Software - Purchase,SCC (Specialist Computer Centre),"12,358.39"
202006,May,202006100103,R5325,Computer Software - Maintenance,SCC (Specialist Computer Centre),"15,937.18"
202006,May,202006102058,R5325,Computer Software - Maintenance,Capita Secure Information Solutions Ltd,"4,335.43"
202006,May,202006102059,R5325,Computer Software - Maintenance,Capita Secure Information Solutions Ltd,"17,862.82"
202006,May,202006102131,R5325,Computer Software - Maintenance,Internet Investigation Solutions,"12,921.18"
202006,May,202006102132,R5320,Computer Software - Purchase,Internet Investigation Solutions,"2,192.52"
202006,May,202006102462,R5325,Computer Software - Maintenance,Micro Systemation Ltd,"-2,895.00"
202006,May,202006102463,R5325,Computer Software - Maintenance,Micro Systemation Ltd,"2,895.00"
202006,May,202006102543,R5325,Computer Software - Maintenance,Chorus Intelligence Limited Previously known as (Create Intelligence Ltd),"25,000.00"
202006,May,202006103184,R1710,ICT Training,QA Training Ltd,"53,122.00"
202006,May,202006103453,R5325,Computer Software - Maintenance,Softcat PLC,"120,098.13"
202006,May,202006103461,R5120,Networks Private Circuits,Insight Direct (UK) Ltd,"3,755.23"
202006,May,202006103465,R5120,Networks Private Circuits,Vodafone Limited,"11,876.21"
202006,May,202006103497,R5315,Computer Hardware - Maintenance,Specialised Equipment Cleaning,595.00
202006,May,202006103515,R5010,Telephone Charges - Landlines,TalkTalk,"2,733.44"
202006,May,202006103529,R5325,Computer Software - Maintenance,Nevis Systems Ltd,"1,480.08"
202006,May,202006103666,R5120,Networks Private Circuits,Vodafone Limited,"1,776.00"
202006,May,202006103876,R5010,Telephone Charges - Landlines,British Telecom,"9,419.04"
202006,May,202006103952,R5110,Networks Hardware Purchase,CPC Plc,763.85
202006,May,202006104180,R5325,Computer Software - Maintenance,Microsoft Limited,"42,375.00"
202006,May,202006104181,R5325,Computer Software - Maintenance,Microsoft Limited,"32,352.75"
202006,May,202006104191,R5325,Computer Software - Maintenance,Oracle Corporation UK Limited,"165,441.27"
202006,May,202006104246,R5325,Computer Software - Maintenance,Maintel Europe Ltd,"4,115.29"
202006,May,202006104296,R5120,Networks Private Circuits,Airwave Solutions Limited (Subsidiary:- Kelvin Connect),"105,600.00"
202006,May,202006104297,R5325,Computer Software - Maintenance,Airwave Solutions Limited (Subsidiary:- Kelvin Connect),"141,705.00"
202006,May,202006104298,R5215,Radio / Airwave Equipment - Maintenance,Airwave Solutions Limited (Subsidiary:- Kelvin Connect),"74,435.05"
202006,May,202006104346,C5310,Computer Hardware - Purchase,Stone Computers Ltd,"46,280.00"
202006,May,202006104428,R5325,Computer Software - Maintenance,Unisys Ltd,853.00
202006,May,202006104538,R5325,Computer Software - Maintenance,Police and Crime Commissioner for West Yorkshire,"12,645.15"
202006,May,202006104698,R5345,Computer & Printer Consumables,Xerox UK Ltd,622.62
202006,May,202006104701,R5345,Computer & Printer Consumables,Xerox UK Ltd,"4,672.60"
202006,May,202006100042,R2720,Other Cleaning & Domestic Equipment,Arrow County Supplies,"1,394.80"
202006,May,202006100054,R2720,Other Cleaning & Domestic Equipment,Arrow County Supplies,"1,238.80"
202006,May,202006100073,R3110,Vehicle Maintenance - Tyres & Tubes,Goodyear Dunlop Tyres UK Limited,"6,476.22"
202006,May,202006100142,R2800,Security and Alarms (inc locks),Chubb Fire and Security Limited,780.00
202006,May,202006100149,R2800,Security and Alarms (inc locks),Chubb Fire and Security Limited,830.68
202006,May,202006100245,R2700,Cleaning Contract,Bulloughs Cleaning Services Ltd,"13,144.49"
202006,May,202006100246,R2700,Cleaning Contract,Bulloughs Cleaning Services Ltd,"3,742.03"
202006,May,202006100247,R2700,Cleaning Contract,Bulloughs Cleaning Services Ltd,600.98
202006,May,202006100248,R2700,Cleaning Contract,Bulloughs Cleaning Services Ltd,"5,127.48"
202006,May,202006100250,R2700,Cleaning Contract,Bulloughs Cleaning Services Ltd,"2,423.10"
202006,May,202006100251,R2700,Cleaning Contract,Bulloughs Cleaning Services Ltd,"3,665.94"
202006,May,202006100252,R2700,Cleaning Contract,Bulloughs Cleaning Services Ltd,"1,502.43"
202006,May,202006100253,R2700,Cleaning Contract,Bulloughs Cleaning Services Ltd,568.48
202006,May,202006100254,R2700,Cleaning Contract,Bulloughs Cleaning Services Ltd,600.97
202006,May,202006100257,R2700,Cleaning Contract,Bulloughs Cleaning Services Ltd,"2,746.86"
202006,May,202006100261,R2700,Cleaning Contract,Bulloughs Cleaning Services Ltd,"1,502.43"
202006,May,202006100323,R4540,Canteen - Hot Drink Machines,Rijo 42 Ingredients Ltd,514.94
202006,May,202006100339,R2030,Unplanned Building Services Security & Security Equipment Maintenance,BID Group Ltd,528.00
202006,May,202006100343,R7006,North West Ambulance Service - Estates Management Collaboration,BID Group Ltd,"1,619.00"
202006,May,202006100438,R4540,Canteen - Hot Drink Machines,BNP Paribas Leasing Solutions Ltd,519.99
202006,May,202006100439,R4540,Canteen - Hot Drink Machines,BNP Paribas Leasing Solutions Ltd,519.99
202006,May,202006100440,R4540,Canteen - Hot Drink Machines,BNP Paribas Leasing Solutions Ltd,519.99
202006,May,202006100441,R4540,Canteen - Hot Drink Machines,BNP Paribas Leasing Solutions Ltd,519.99
202006,May,202006100447,R2730,Refuse,Suez Recycling & Recovery UK Ltd,"6,191.07"
202006,May,202006100554,R3450,Accident Damage (Below Insurance Excess)),Thompson Accident Repair Centre Ltd,652.50
202006,May,202006100555,R3450,Accident Damage (Below Insurance Excess)),Thompson Accident Repair Centre Ltd,663.00
202006,May,202006100556,R3460,Accident Damage (Below Insurance Threshold),Thompson Accident Repair Centre Ltd,734.49
202006,May,202006100557,R3460,Accident Damage (Below Insurance Threshold),Thompson Accident Repair Centre Ltd,"1,000.00"
202006,May,202006100559,R3460,Accident Damage (Below Insurance Threshold),Thompson Accident Repair Centre Ltd,"1,000.00"
202006,May,202006100561,R3460,Accident Damage (Below Insurance Threshold),Thompson Accident Repair Centre Ltd,"1,000.00"
202006,May,202006100562,R3460,Accident Damage (Below Insurance Threshold),Thompson Accident Repair Centre Ltd,598.89
202006,May,202006100563,R3460,Accident Damage (Below Insurance Threshold),Thompson Accident Repair Centre Ltd,"1,000.00"
202006,May,202006100564,R3460,Accident Damage (Below Insurance Threshold),Thompson Accident Repair Centre Ltd,"8,048.23"
202006,May,202006100565,R3460,Accident Damage (Below Insurance Threshold),Thompson Accident Repair Centre Ltd,"1,000.00"
202006,May,202006100647,R2275,Planned Servicing HVAC System,Carlisle Refrigeration Limited,596.00
202006,May,202006100651,R2275,Planned Servicing HVAC System,Carlisle Refrigeration Limited,505.00
202006,May,202006100727,R7006,North West Ambulance Service - Estates Management Collaboration,Cumbria Mechanical and Plumbing Ltd,"2,561.00"
202006,May,202006100728,R7006,North West Ambulance Service - Estates Management Collaboration,Cumbria Mechanical and Plumbing Ltd,653.79
202006,May,202006100730,R2260,Planned Servicing Boiler & Heating Plant,Cumbria Mechanical and Plumbing Ltd,"9,319.00"
202006,May,202006100732,R2140,Unplanned Building Maintenance Internal Maintenance,Cumbria Mechanical and Plumbing Ltd,692.90
202006,May,202006100737,R2150,Unplanned Building Maintenance Electrics,JJ Group (Contracting) Ltd,"1,302.22"
202006,May,202006101116,R2610,Estates Leases,Solway Plain Futures Ltd,"1,898.00"
202006,May,202006101292,R3917,Bicycle Maintenance Costs,Arragons Cycle Centre,"1,744.60"
202006,May,202006101319,R2730,Refuse,Enterprise Managed Services Ltd,"1,159.60"
202006,May,202006101365,R7006,North West Ambulance Service - Estates Management Collaboration,Metcalfe Plant & Tool Ltd,945.75
202006,May,202006101510,C2245,Planned Survey Alterations & Improvements,Thomas Armstrong Construction Ltd,"61,682.87"
202006,May,202006101538,R2080,Unplanned Building Services External Other,Frederick Potts and Sons Ltd,969.87
202006,May,202006101546,R2070,Unplanned Building Services Internal Other,Frederick Potts and Sons Ltd,605.00
202006,May,202006101548,R2410,Minor Works,Frederick Potts and Sons Ltd,927.88
202006,May,202006101551,R2170,Unplanned Building Maintenance External Maintenance,Frederick Potts and Sons Ltd,850.00
202006,May,202006101552,R7006,North West Ambulance Service - Estates Management Collaboration,Frederick Potts and Sons Ltd,"3,265.00"
202006,May,202006101718,R2830,Professional Fees,Institute of Workplace and Facilities Management,957.00
202006,May,202006101800,C3905,Vehicle Adaptations - Capital,Woodway Engineering Ltd,"2,799.00"
202006,May,202006101840,C3905,Vehicle Adaptations - Capital,Wurth UK Ltd,668.14
202006,May,202006101841,C3905,Vehicle Adaptations - Capital,Wurth UK Ltd,615.77
202006,May,202006102142,R2680,PFI Occupancy Charges,West Cumbria Estates Management Limited,"105,000.00"
202006,May,202006102153,R2030,Unplanned Building Services Security & Security Equipment Maintenance,Northern Steeplejacks Ltd,525.00
202006,May,202006102168,R2500,Oil,Certas Energy Limited,"5,789.50"
202006,May,202006102169,R2500,Oil,Certas Energy Limited,"1,713.87"
202006,May,202006102170,R2500,Oil,Certas Energy Limited,"3,449.76"
202006,May,202006102171,R2500,Oil,Certas Energy Limited,"4,358.20"
202006,May,202006102436,R3210,Police Vehicle Recovery & Transport,FMG Support (RRRM) Ltd,"3,503.00"
202006,May,202006102475,R2730,Refuse,Biffa Waste Services Limited,513.60
202006,May,202006102477,R2730,Refuse,Biffa Waste Services Limited,629.76
202006,May,202006102480,R2730,Refuse,Biffa Waste Services Limited,820.00
202006,May,202006102485,R2730,Refuse,Biffa Waste Services Limited,754.80
202006,May,202006102604,R2800,Security and Alarms (inc locks),Mawtec Systems Limited,"2,856.00"
202006,May,202006102708,R2660,Business Rates,South Lakeland District Council,"1,990.00"
202006,May,202006102746,R2040,Unplanned Building Services Fire Systems,FTS Fire and  Security Ltd,506.00
202006,May,202006102805,R2610,Estates Leases,Sedbergh and District Charitable Incorporated Organisation CIO,"2,400.00"
202006,May,202006102991,R3120,Vehicle Maintenance - Parts Purchase,Guy Perry Ltd,685.70
202006,May,202006102993,R3120,Vehicle Maintenance - Parts Purchase,Guy Perry Ltd,"1,275.89"
202006,May,202006102994,R3120,Vehicle Maintenance - Parts Purchase,Guy Perry Ltd,"2,921.33"
202006,May,202006103132,R2505,Gas,Flogas Britain Ltd,909.77
202006,May,202006103237,R3120,Vehicle Maintenance - Parts Purchase,Volkswagen Group UK Ltd,521.53
202006,May,202006103502,R2740,Destruction of Confidential Waste,Shred it,501.00
202006,May,202006103524,R2610,Estates Leases,Ulverston Properties Limited,820.83
202006,May,202006103897,R2510,Electricity,EDF Energy,"-16,646.70"
202006,May,202006103898,R2530,Climate Change Levy,EDF Energy,"-1,153.24"
202006,May,202006103900,R2510,Electricity,EDF Energy,"3,396.03"
202006,May,202006103902,R2510,Electricity,EDF Energy,"10,083.51"
202006,May,202006103903,R2530,Climate Change Levy,EDF Energy,658.66
202006,May,202006103904,R2510,Electricity,EDF Energy,"11,201.58"
202006,May,202006103906,R2510,Electricity,EDF Energy,"14,321.10"
202006,May,202006103907,R2530,Climate Change Levy,EDF Energy,927.89
202006,May,202006103965,R2210,Planned Survey External Maintenance,Designed Roof Systems Ltd,"7,300.00"
202006,May,202006103988,R4520,Canteen - Purchase of Food / Ingredients,Cleggs Chilled Food Service,638.50
202006,May,202006104257,R2277,Planned Servicing Water Chlorination,Water and Air Management Limited,989.40
202006,May,202006104289,R7006,North West Ambulance Service - Estates Management Collaboration,Countrywide Grounds Maintenance Ltd,641.66
202006,May,202006104426,R3120,Vehicle Maintenance - Parts Purchase,Castrol (UK) Ltd,"1,037.92"
202006,May,202006104430,C3900,Vehicle Purchases - Capital,Volkswagen Group UK Ltd,"25,818.58"
202006,May,202006104431,C3900,Vehicle Purchases - Capital,Volkswagen Group UK Ltd,"26,144.74"
202006,May,202006104432,C3900,Vehicle Purchases - Capital,Volkswagen Group UK Ltd,"25,818.58"
202006,May,202006104434,C3900,Vehicle Purchases - Capital,Volkswagen Group UK Ltd,"26,084.58"
202006,May,202006104642,R3510,Vehicle Fuel,Allstar Business Solutions Ltd,"32,190.25"
202006,May,202006104643,R3510,Vehicle Fuel,Allstar Business Solutions Ltd,907.29
202006,May,202006104644,R3510,Vehicle Fuel,Allstar Business Solutions Ltd,"1,279.47"
202006,May,202006104648,R3510,Vehicle Fuel,Allstar Business Solutions Ltd,812.87
202006,May,202006104650,R3510,Vehicle Fuel,Allstar Business Solutions Ltd,719.87
202006,May,202006104678,C3905,Vehicle Adaptations - Capital,RSG Engineering Ltd,873.24
202006,May,202006104679,C3905,Vehicle Adaptations - Capital,RSG Engineering Ltd,"2,120.00"
202006,May,202006104680,C3905,Vehicle Adaptations - Capital,RSG Engineering Ltd,"1,082.00"
202006,May,202006104682,C3905,Vehicle Adaptations - Capital,RSG Engineering Ltd,"4,636.16"
202006,May,202006104683,C3905,Vehicle Adaptations - Capital,RSG Engineering Ltd,"3,482.72"
202006,May,202006100026,R5600,Postage Costs,Pitney Bowes Ltd,"5,055.02"
202006,May,202006101010,R5630,Courier Services - Internal Deliveries,Cumbria County Council,"3,051.43"
202006,May,202006101104,R4090,The information is confidential or would attract an exemption under the Freedom of Information Act e.g. where disclosure could be prejudicial to the commercial interests of any person including the authority,Redacted,549.69
202006,May,202006101105,R4090,The information is confidential or would attract an exemption under the Freedom of Information Act e.g. where disclosure could be prejudicial to the commercial interests of any person including the authority,Redacted,581.46
202006,May,202006101106,R4090,The information is confidential or would attract an exemption under the Freedom of Information Act e.g. where disclosure could be prejudicial to the commercial interests of any person including the authority,Redacted,796.38
202006,May,202006101308,R6870,Subsistence - Training,Brooklands Guest House,640.00
202006,May,202006101980,R6840,Hotel Accommodation,Capita Travel and Events,"1,916.67"
202006,May,202006102007,R6850,Hotel Accommodation - Training,Capita Travel and Events,812.00
202006,May,202006102016,R6850,Hotel Accommodation - Training,Capita Travel and Events,"6,940.00"
202006,May,202006102018,R6850,Hotel Accommodation - Training,Capita Travel and Events,"10,560.00"
202006,May,202006102019,R6850,Hotel Accommodation - Training,Capita Travel and Events,574.56
202006,May,202006102024,R6850,Hotel Accommodation - Training,Capita Travel and Events,768.00
202006,May,202006102025,R6850,Hotel Accommodation - Training,Capita Travel and Events,704.19
202006,May,202006102803,R3670,Vehicle Hire - Car Share Scheme,Enterprise Car Club,"3,720.00"
202006,May,202006102628,R1720,Other Support Function Training,University of Cumbria,550.00
202006,May,202006102629,R1800,Further Education,University of Cumbria,"1,100.00"
202006,May,202006104305,R1740,Leadership Training,Thomas International UK Ltd,700.00
202006,May,202006104306,R1740,Leadership Training,Thomas International UK Ltd,700.00
202006,May,202006104688,R1800,Further Education,University of Wolverhampton,"1,042.00"
202006,May,202006101412,R6730,Non-Staff Advertising,Cumberland FA,900.00
202006,May,202006101615,R6745,Other Promotional Expenses,Soopa Doopa Branding Ltd,"6,834.00"
202006,May,202006101617,R6745,Other Promotional Expenses,Soopa Doopa Branding Ltd,"3,566.00"
202006,May,202006101619,R6745,Other Promotional Expenses,Soopa Doopa Branding Ltd,"3,825.00"
202006,May,202006101724,R4175,Print Unit - Digital Copier Click Charges,Xerox UK Ltd,"1,152.55"
202006,May,202006102496,R6750,Consultants Fees - Other,SMSR Ltd,616.00
202006,May,202006103563,R4155,External Printing,Harlow Printing Limited,"1,100.00"
202006,May,202006100731,R2230,Planned Survey Electrics,JJ Group (Contracting) Ltd,742.50
202006,May,202006104226,R5600,Postage Costs,Royal Mail,"1,375.43"
202006,May,202006104228,R5600,Postage Costs,Royal Mail,"1,092.32"
202006,May,202006101993,R3745,Travel - Public Transport,Capita Travel and Events,-614.80
202006,May,202006100451,R6785,Contributions - PCC Commissioning Services,Cumbria Gateway,"10,445.25"
202006,May,202006101467,R6785,Contributions - PCC Commissioning Services,South Workington Youth Partnership,"7,000.00"
202006,May,202006101856,R6785,Contributions - PCC Commissioning Services,Victim Support,"73,369.42"
202006,May,202006101857,R6785,Contributions - PCC Commissioning Services,Victim Support,"14,191.25"
202006,May,202006102636,R6785,Contributions - PCC Commissioning Services,The Well Communities C.I.C,"3,000.00"
202006,May,202006103108,R6785,Contributions - PCC Commissioning Services,Brathay Trust,"6,091.00"
202006,May,202006103370,R0500,Agency Staff,Comensura Ltd,902.06
202006,May,202006103375,R0500,Agency Staff,Comensura Ltd,926.44
202006,May,202006103578,R6830,External Audit Fee,Grant Thornton UK LLP,"5,840.00"
202006,May,202006104360,R6710,Subscriptions,Association of Police and Crime Commissioners,"30,000.00"
202006,May,202006104362,R7082,National Police Chiefs Council (NPCC),Mayors Office for Policing and Crime,"13,766.00"
202006,May,202006104363,R7080,National Police Co-ordination Centre (NPoCC),Mayors Office for Policing and Crime,"16,788.00"
202006,May,202006104364,R7090,Other Collaboration Payments,Mayors Office for Policing and Crime,"7,970.00"
202006,May,202006101246,R4780,Disclosure of information would breach the Data Protection Act 1998 ,Redacted,800.00
202006,May,202006101264,R5790,Operational Equipment - Audio / Video Equipment,PSS Home Entertainment Limited,715.00
202006,May,202006101684,R5835,Operational Equipment - Testing Kits & Consumables,Scenesafe,748.08
202006,May,202006101753,R4715,Forensic Analysis - Volume Crime,Key Forensic Services Ltd (Orange UK Holdings Ltd),634.74
202006,May,202006101754,R4715,Forensic Analysis - Volume Crime,Key Forensic Services Ltd (Orange UK Holdings Ltd),972.97
202006,May,202006101757,R4715,Forensic Analysis - Volume Crime,Key Forensic Services Ltd (Orange UK Holdings Ltd),812.00
202006,May,202006101758,R4705,Forensic Analysis - Over Prescribed Limit,Key Forensic Services Ltd (Orange UK Holdings Ltd),"3,472.03"
202006,May,202006101759,R4705,Forensic Analysis - Over Prescribed Limit,Key Forensic Services Ltd (Orange UK Holdings Ltd),"1,326.75"
202006,May,202006101760,R4705,Forensic Analysis - Over Prescribed Limit,Key Forensic Services Ltd (Orange UK Holdings Ltd),717.75
202006,May,202006101762,R4710,Forensic Analysis - Serious Crime,Key Forensic Services Ltd (Orange UK Holdings Ltd),"1,625.75"
202006,May,202006101763,R4710,Forensic Analysis - Serious Crime,Key Forensic Services Ltd (Orange UK Holdings Ltd),"1,938.45"
202006,May,202006101765,R4715,Forensic Analysis - Volume Crime,Key Forensic Services Ltd (Orange UK Holdings Ltd),"2,001.00"
202006,May,202006101766,R4705,Forensic Analysis - Over Prescribed Limit,Key Forensic Services Ltd (Orange UK Holdings Ltd),"1,405.78"
202006,May,202006101767,R4705,Forensic Analysis - Over Prescribed Limit,Key Forensic Services Ltd (Orange UK Holdings Ltd),"2,319.28"
202006,May,202006101768,R4705,Forensic Analysis - Over Prescribed Limit,Key Forensic Services Ltd (Orange UK Holdings Ltd),535.78
202006,May,202006101770,R4715,Forensic Analysis - Volume Crime,Key Forensic Services Ltd (Orange UK Holdings Ltd),876.12
202006,May,202006101771,R4710,Forensic Analysis - Serious Crime,Key Forensic Services Ltd (Orange UK Holdings Ltd),798.05
202006,May,202006101772,R4710,Forensic Analysis - Serious Crime,Key Forensic Services Ltd (Orange UK Holdings Ltd),"1,102.72"
202006,May,202006101773,R4710,Forensic Analysis - Serious Crime,Key Forensic Services Ltd (Orange UK Holdings Ltd),"4,431.25"
202006,May,202006102613,R7065,TITAN - North West Collaboration,Police and Crime Commissioner for Merseyside,"12,748.25"
202006,May,202006102614,R7065,TITAN - North West Collaboration,Police and Crime Commissioner for Merseyside,"10,944.35"
202006,May,202006102615,R7065,TITAN - North West Collaboration,Police and Crime Commissioner for Merseyside,"34,043.32"
202006,May,202006102616,R7065,TITAN - North West Collaboration,Police and Crime Commissioner for Merseyside,"30,673.54"
202006,May,202006102617,R7065,TITAN - North West Collaboration,Police and Crime Commissioner for Merseyside,"58,429.66"
202006,May,202006102634,R5950,Disclosure of information would breach the Data Protection Act 1998 ,Redacted,619.50
202006,May,202006102665,R5950,Disclosure of information would breach the Data Protection Act 1998 ,Redacted,661.61
202006,May,202006103160,R6750,Consultants Fees - Other,Police and Crime Commissioner for North Wales,"7,070.91"
202006,May,202006103672,R4705,Forensic Analysis - Over Prescribed Limit,Orchid Cellmark Ltd,580.00
202006,May,202006103673,R4710,Forensic Analysis - Serious Crime,Orchid Cellmark Ltd,649.60
202006,May,202006103674,R4715,Forensic Analysis - Volume Crime,Orchid Cellmark Ltd,649.60
202006,May,202006103676,R4710,Forensic Analysis - Serious Crime,Orchid Cellmark Ltd,632.20
202006,May,202006103678,R4710,Forensic Analysis - Serious Crime,Orchid Cellmark Ltd,"1,167.10"
202006,May,202006104286,R4845,The information is confidential or would attract an exemption under the Freedom of Information Act e.g. where disclosure could be prejudicial to the commercial interests of any person including the authority ,Redacted,"1,260.00"
202006,May,202006104376,R4845,The information is confidential or would attract an exemption under the Freedom of Information Act e.g. where disclosure could be prejudicial to the commercial interests of any person including the authority ,Redacted,"1,800.00"
202006,May,202006104410,R4720,Forensic Analysis - PACE / DNA,Eurofins Forensic Services Ltd,768.66
202006,May,202006104416,R4720,Forensic Analysis - PACE / DNA,Eurofins Forensic Services Ltd,"1,162.08"
202006,May,202006104424,R6750,Consultants Fees - Other,United Kingdom Accreditation Service,"3,077.75"
202006,May,202006100183,R4630,Detained Persons - Appropriate Adult Services,Child Action Northwest,"9,633.12"
202006,May,202006101333,R5916,Police Dogs - Vets Fees,Frame Swift and Partners LLP,954.82
202006,May,202006101473,R4625,Detained Persons - Laundry,Shortridge Ltd,647.55
202006,May,202006101476,R4625,Detained Persons - Laundry,Shortridge Ltd,508.59
202006,May,202006101478,R6702,Confiscated Animal Costs,Whinmill Farm Canine Centre,"5,580.00"
202006,May,202006101479,R6702,Confiscated Animal Costs,Whinmill Farm Canine Centre,"5,865.00"
202006,May,202006101690,R5865,Operational Equipment - Other,Scenesafe,645.00
202006,May,202006102053,R4625,Detained Persons - Laundry,Shortridge Ltd,"1,265.29"
202006,May,202006102121,R4605,Detained Persons - Clothing,Charles Fellows Supplies Limited,925.00
202006,May,202006102376,R4960,Disclosure of information would breach the Data Protection Act 1998,Redacted,560.00
202006,May,202006102380,R6750,Consultants Fees - Other,Perfect Flow Solutions Limited,"7,700.00"
202006,May,202006102434,R6610,Vehicle Recovery Costs,FMG Support (RRRM) Ltd,"1,065.00"
202006,May,202006102526,R5865,Operational Equipment - Other,Arco Limited,599.09
202006,May,202006102698,R6702,Confiscated Animal Costs,Flatt Farm Boarding Kennels,"3,019.00"
202006,May,202006103176,R5980,Firearms Equipment,Civil Defence Supply Limited,"1,737.50"
202006,May,202006103592,C5790,Operational Equipment - Audio / Video Equipment,Axon Public Safety UK Limited,"9,000.00"
202006,May,202006104012,R5835,Operational Equipment - Testing Kits & Consumables,D.Tec International Ltd,"1,674.00"
202006,May,202006104013,R5835,Operational Equipment - Testing Kits & Consumables,D.Tec International Ltd,"1,674.00"
202006,May,202006104014,R5835,Operational Equipment - Testing Kits & Consumables,D.Tec International Ltd,"1,674.00"
202006,May,202006104016,R5835,Operational Equipment - Testing Kits & Consumables,D.Tec International Ltd,"1,701.00"
202006,May,202006104017,R5835,Operational Equipment - Testing Kits & Consumables,D.Tec International Ltd,"1,701.00"
202006,May,202006104018,R5835,Operational Equipment - Testing Kits & Consumables,D.Tec International Ltd,"1,701.00"
202006,May,202006104031,R1630,Other Operational Training,The ATTAC Group,"7,920.00"
202006,May,202006104032,R4940,First Aid Equipment / Consumables,The ATTAC Group,"1,260.00"
202006,May,202006104706,R5910,Police Dogs - Purchase,Foxhills Boarding Kennels,"1,500.00"
202006,May,202006100017,R4940,First Aid Equipment / Consumables,Henleys Medical Supplies Ltd,"1,750.00"
202006,May,202006100018,R4940,First Aid Equipment / Consumables,Henleys Medical Supplies Ltd,"1,750.00"
202006,May,202006100098,R5110,Networks Hardware Purchase,SCC (Specialist Computer Centre),"5,507.70"
202006,May,202006100101,R5110,Networks Hardware Purchase,SCC (Specialist Computer Centre),"4,244.50"
202006,May,202006100242,R2700,Cleaning Contract,Bulloughs Cleaning Services Ltd,"5,213.45"
202006,May,202006100264,R2700,Cleaning Contract,Bulloughs Cleaning Services Ltd,664.70
202006,May,202006101038,R4940,First Aid Equipment / Consumables,Thomas Graham and Sons Limited,"1,149.60"
202006,May,202006101039,R4940,First Aid Equipment / Consumables,Thomas Graham and Sons Limited,"2,902.50"
202006,May,202006101040,R4940,First Aid Equipment / Consumables,Thomas Graham and Sons Limited,"1,161.00"
202006,May,202006101272,R4000,Office Equipment - Purchase,PSS Home Entertainment Limited,"2,504.00"
202006,May,202006101550,R2410,Minor Works,Frederick Potts and Sons Ltd,"1,060.76"
202006,May,202006101680,R4940,First Aid Equipment / Consumables,Scenesafe,"2,950.00"
202006,May,202006102143,R2700,Cleaning Contract,West Cumbria Estates Management Limited,"1,223.87"
202006,May,202006103940,R4940,First Aid Equipment / Consumables,HBS Healthcare,"25,000.00"
202006,May,202006103941,R4940,First Aid Equipment / Consumables,HBS Healthcare,"25,000.00"
202006,May,202006103942,R4940,First Aid Equipment / Consumables,HBS Healthcare,"25,000.00"
202006,May,202006103954,R5110,Networks Hardware Purchase,CPC Plc,"1,125.00"
202006,May,202006104248,R5325,Computer Software - Maintenance,Fortrus Limited,"38,152.00"
202006,May,202006104343,R5310,Computer Hardware - Purchase,Stone Computers Ltd,"31,375.00"
202006,May,202006104344,R5110,Networks Hardware Purchase,Stone Computers Ltd,"24,625.00"
202006,May,202006104345,R5310,Computer Hardware - Purchase,Stone Computers Ltd,"2,550.00"
202006,May,202006104429,C3900,Vehicle Purchases - Capital,Volkswagen Group UK Ltd,"28,111.06"
202006,May,202006104433,C3900,Vehicle Purchases - Capital,Volkswagen Group UK Ltd,"23,119.34"
202006,May,202006100053,B2302,Inventories/Stocks - General / Admin Equipment - Purchases,Arrow County Supplies,775.40
202006,May,202006100058,B2302,Inventories/Stocks - General / Admin Equipment - Purchases,Arrow County Supplies,949.06
202006,May,202006100071,B2312,Inventories/Stocks - Uniforms - Purchases,Sonic Communications Int Ltd,600.50
202006,May,202006100074,B2312,Inventories/Stocks - Uniforms - Purchases,TCH UK Ltd,"4,010.00"
202006,May,202006100315,B2312,Inventories/Stocks - Uniforms - Purchases,Tranam Limited,"1,148.32"
202006,May,202006101267,R4000,Office Equipment - Purchase,PSS Home Entertainment Limited,575.00
202006,May,202006102368,B2312,Inventories/Stocks - Uniforms - Purchases,Yaffy (MWUK Ltd),"2,587.50"
202006,May,202006102458,B2312,Inventories/Stocks - Uniforms - Purchases,Lloyd Motors Ltd,545.13
202006,May,202006102547,B2312,Inventories/Stocks - Uniforms - Purchases,Keela International Ltd,"1,427.30"
202006,May,202006103346,B2312,Inventories/Stocks - Uniforms - Purchases,Turner Virr  Co Ltd,"1,522.50"
202006,May,202006100066,B4006,Provision for Insurance Liabilities - Drawdown from Provision - Own Counsel's Costs,Atlantic Chambers,-900.00
202006,May,202006100067,B4053,Provision for Legal Claims - Drawdown from Provision,Atlantic Chambers,750.00
202006,May,202006102560,B4004,Disclosure of information would breach the Data Protection Act 1998,Redacted,"3,500.00"
202006,May,202006102561,B4005,Provision for Insurance Liabilities - Drawdown from Provision - Own Solicitor's Costs,Weightmans LLP,"4,924.80"
202006,May,202006102624,B4003,Disclosure of information would breach the Data Protection Act 1998,Redacted,"7,800.00"
202006,May,202006102625,B4004,Disclosure of information would breach the Data Protection Act 1998,Redacted,720.00
202006,May,202006102626,B4007,Disclosure of information would breach the Data Protection Act 1998,Redacted,"1,092.00"
202006,May,202006103459,B4003,Disclosure of information would breach the Data Protection Act 1998,Redacted,"2,420.00"
202006,May,202006104255,R6660,Counsel Fees,5 Essex Court,-510.00
202006,Jun,202006103383,R0500,Agency Staff,Comensura Ltd,"1,200.63"
202006,Jun,202006103384,R0500,Agency Staff,Comensura Ltd,"5,339.50"
202006,Jun,202006103385,R0500,Agency Staff,Comensura Ltd,"1,024.20"
202006,Jun,202006103386,R0500,Agency Staff,Comensura Ltd,"4,593.54"
202006,Jun,202006103389,R0500,Agency Staff,Comensura Ltd,597.12
202006,Jun,202006103390,R0500,Agency Staff,Comensura Ltd,"1,342.64"
202006,Jun,202006103391,R0500,Agency Staff,Comensura Ltd,"1,775.56"
202006,Jun,202006103392,R0500,Agency Staff,Comensura Ltd,"1,013.98"
202006,Jun,202006103397,R0500,Agency Staff,Comensura Ltd,"1,250.22"
202006,Jun,202006103398,R0500,Agency Staff,Comensura Ltd,"1,032.80"
202006,Jun,202006103399,R0500,Agency Staff,Comensura Ltd,"3,551.12"
202006,Jun,202006103400,R0500,Agency Staff,Comensura Ltd,"1,842.22"
202006,Jun,202006103404,R0500,Agency Staff,Comensura Ltd,867.69
202006,Jun,202006103405,R0500,Agency Staff,Comensura Ltd,"1,032.80"
202006,Jun,202006103406,R0500,Agency Staff,Comensura Ltd,"2,219.45"
202006,Jun,202006103407,R0500,Agency Staff,Comensura Ltd,"1,044.67"
202006,Jun,202006103410,R0500,Agency Staff,Comensura Ltd,597.12
202006,Jun,202006103411,R0500,Agency Staff,Comensura Ltd,"1,032.80"
202006,Jun,202006103412,R0500,Agency Staff,Comensura Ltd,"3,995.01"
202006,Jun,202006103413,R0500,Agency Staff,Comensura Ltd,897.84
202006,Jun,202006103414,R0500,Agency Staff,Comensura Ltd,"4,593.54"
202006,Jun,202006103417,R0500,Agency Staff,Comensura Ltd,746.40
202006,Jun,202006103418,R0500,Agency Staff,Comensura Ltd,955.34
202006,Jun,202006103419,R0500,Agency Staff,Comensura Ltd,"1,065.10"
202006,Jun,202006103422,R0500,Agency Staff,Comensura Ltd,915.84
202006,Jun,202006103423,R0500,Agency Staff,Comensura Ltd,"1,418.16"
202006,Jun,202006103424,R0500,Agency Staff,Comensura Ltd,"1,252.27"
202006,Jun,202006103425,R0500,Agency Staff,Comensura Ltd,"2,219.45"
202006,Jun,202006103426,R0500,Agency Staff,Comensura Ltd,"1,065.10"
202006,Jun,202006103431,R0500,Agency Staff,Comensura Ltd,597.12
202006,Jun,202006103432,R0500,Agency Staff,Comensura Ltd,"2,219.45"
202006,Jun,202006103433,R0500,Agency Staff,Comensura Ltd,"1,065.11"
202006,Jun,202006103944,R1610,CID Training,Sancus Solutions Ltd,635.00
202006,Jun,202006103945,R1610,CID Training,Sancus Solutions Ltd,635.00
202006,Jun,202006104188,R1138,Psychological Screening,NTA Psychological Screening Ltd,"1,380.00"
202006,Jun,202006104025,R3740,Disclosure of information would breach the Data Protection Act 1998,Redacted,"1,026.00"
202006,Jun,202006104027,R3740,Disclosure of information would breach the Data Protection Act 1998,Redacted,972.00
202006,Jun,202006100008,Z2123,Returned Payments - Clearance in the Year (Expenditure),Black Bag Technologies,"1,308.00"
202006,Jun,202006100442,Z2123,Returned Payments - Clearance in the Year (Expenditure),BNP Paribas Leasing Solutions Ltd,519.99
202006,Jun,202006100443,Z2123,Returned Payments - Clearance in the Year (Expenditure),BNP Paribas Leasing Solutions Ltd,519.99
202006,Jun,202006100444,Z2123,Returned Payments - Clearance in the Year (Expenditure),BNP Paribas Leasing Solutions Ltd,519.99
202006,Jun,202006100445,Z2123,Returned Payments - Clearance in the Year (Expenditure),BNP Paribas Leasing Solutions Ltd,519.99
202006,Jun,202006101169,R4880,Ex-Gratia Payments,Exgratia Payments,807.00
202006,Jun,202006101177,R7290,Other Third Party Payments,Cumbria Police Federation Joint Branch Board,"6,000.00"
202006,Jun,202006102082,Z2123,Returned Payments - Clearance in the Year (Expenditure),Mr Adrian Desmond (Returned seized cash),600.00
202006,Jun,202006103576,R7040,Payroll Services,MHR International UK LTD,"15,856.50"
202006,Jun,202006103643,R6710,Subscriptions,National Crime Agency,577.00
202006,Jun,202006104174,R7042,Pension Services,XPS Administration Limited T/A XPS Administration,"8,911.17"
202006,Jun,202006104247,R6710,Subscriptions,Protect,"1,127.11"
202006,Jun,202006104322,R6710,Subscriptions,Police and Crime Commissioner for Hampshire Constabulary,"3,650.16"
202006,Jun,202006104324,R7290,Other Third Party Payments,Police and Crime Commissioner for Hampshire Constabulary,"1,817.97"
202006,Jun,202006104341,R3660,The information is confidential or would attract an exemption under the Freedom of Information Act e.g. where disclosure could be prejudicial to the commercial interests of any person including the authority ,Redacted,"1,980.00"
202006,Jun,202006104520,R2661,Council Tax,Warrington Borough Council,"1,828.83"
202006,Jun,202006104524,R2600,Rent,Reed Rains,750.00
202006,Jun,202006100016,R5015,Telephone Charges - Mobile Phones,EE Limited,"2,394.48"
202006,Jun,202006100446,R5325,Computer Software - Maintenance,Clue Computing Company Ltd,"3,900.00"
202006,Jun,202006102060,R5325,Computer Software - Maintenance,Capita Secure Information Solutions Ltd,"5,523.90"
202006,Jun,202006102061,R5325,Computer Software - Maintenance,Capita Secure Information Solutions Ltd,"5,662.00"
202006,Jun,202006102102,R5325,Computer Software - Maintenance,Civica UK Ltd,"14,487.28"
202006,Jun,202006102381,C6750,Consultants Fees - Other,Perfect Flow Solutions Limited,"7,000.00"
202006,Jun,202006102460,R5325,Computer Software - Maintenance,Northgate Public Services UK Ltd,"12,499.00"
202006,Jun,202006103163,R5210,Radio / Airwave Equipment - Purchases,Primetake Ltd,907.50
202006,Jun,202006103394,R6755,Consultants Fees - ICT,Comensura Ltd,"1,200.80"
202006,Jun,202006103428,R6755,Consultants Fees - ICT,Comensura Ltd,"1,501.00"
202006,Jun,202006103435,R6755,Consultants Fees - ICT,Comensura Ltd,"1,032.80"
202006,Jun,202006103436,R6755,Consultants Fees - ICT,Comensura Ltd,"1,501.00"
202006,Jun,202006103452,R5325,Computer Software - Maintenance,Softcat PLC,"120,946.00"
202006,Jun,202006103454,R5325,Computer Software - Maintenance,Softcat PLC,"26,010.00"
202006,Jun,202006103455,R5325,Computer Software - Maintenance,Softcat PLC,"23,040.00"
202006,Jun,202006103456,R5325,Computer Software - Maintenance,Softcat PLC,"32,460.00"
202006,Jun,202006103457,R5325,Computer Software - Maintenance,Softcat PLC,"70,782.00"
202006,Jun,202006103462,R5120,Networks Private Circuits,Insight Direct (UK) Ltd,"3,807.42"
202006,Jun,202006103466,R5120,Networks Private Circuits,Vodafone Limited,"3,958.16"
202006,Jun,202006103467,R5120,Networks Private Circuits,Vodafone Limited,"23,400.00"
202006,Jun,202006103469,R5120,Networks Private Circuits,Vodafone Limited,"5,987.22"
202006,Jun,202006103470,R5120,Networks Private Circuits,Vodafone Limited,"11,876.21"
202006,Jun,202006103471,R5120,Networks Private Circuits,Vodafone Limited,"11,876.21"
202006,Jun,202006103472,R5120,Networks Private Circuits,Vodafone Limited,"3,958.16"
202006,Jun,202006103498,R5315,Computer Hardware - Maintenance,Specialised Equipment Cleaning,660.00
202006,Jun,202006103516,R5010,Telephone Charges - Landlines,TalkTalk,"2,492.61"
202006,Jun,202006103573,R5320,Computer Software - Purchase,MHR International UK LTD,"1,500.00"
202006,Jun,202006103574,R5325,Computer Software - Maintenance,MHR International UK LTD,"3,850.00"
202006,Jun,202006103575,R5320,Computer Software - Purchase,MHR International UK LTD,"3,369.50"
202006,Jun,202006103667,R5120,Networks Private Circuits,Vodafone Limited,"1,776.00"
202006,Jun,202006104184,R5120,Networks Private Circuits,Vodafone Limited,"8,800.40"
202006,Jun,202006104299,R5215,Radio / Airwave Equipment - Maintenance,Airwave Solutions Limited (Subsidiary:- Kelvin Connect),"79,036.73"
202006,Jun,202006104323,R7110,National Police ICT Service Charges,Police and Crime Commissioner for Hampshire Constabulary,"20,915.43"
202006,Jun,202006104347,C5310,Computer Hardware - Purchase,Stone Computers Ltd,"5,060.00"
202006,Jun,202006104519,C6755,Consultants Fees - ICT,CW Systems Intergration Limited,"2,000.00"
202006,Jun,202006104686,R5325,Computer Software - Maintenance,Version 1 Solutions Limited,"4,064.98"
202006,Jun,202006104687,R6755,Consultants Fees - ICT,Version 1 Solutions Limited,"5,405.68"
202006,Jun,202006100056,R2720,Other Cleaning & Domestic Equipment,Arrow County Supplies,775.40
202006,Jun,202006100061,R2720,Other Cleaning & Domestic Equipment,Arrow County Supplies,929.10
202006,Jun,202006100062,R2720,Other Cleaning & Domestic Equipment,Arrow County Supplies,"1,394.80"
202006,Jun,202006100113,R3510,Vehicle Fuel,Allstar Business Solutions Ltd,"1,529.32"
202006,Jun,202006100160,R2800,Security and Alarms (inc locks),Chubb Fire and Security Limited,"4,317.13"
202006,Jun,202006100166,R2800,Security and Alarms (inc locks),Chubb Fire and Security Limited,689.87
202006,Jun,202006100167,R2800,Security and Alarms (inc locks),Chubb Fire and Security Limited,709.73
202006,Jun,202006100186,R3120,Vehicle Maintenance - Parts Purchase,James Alpe Ltd,535.00
202006,Jun,202006100282,R2700,Cleaning Contract,Bulloughs Cleaning Services Ltd,"13,144.49"
202006,Jun,202006100283,R2700,Cleaning Contract,Bulloughs Cleaning Services Ltd,"3,742.03"
202006,Jun,202006100284,R2700,Cleaning Contract,Bulloughs Cleaning Services Ltd,600.98
202006,Jun,202006100285,R2700,Cleaning Contract,Bulloughs Cleaning Services Ltd,"5,156.04"
202006,Jun,202006100287,R2700,Cleaning Contract,Bulloughs Cleaning Services Ltd,"2,430.46"
202006,Jun,202006100288,R2700,Cleaning Contract,Bulloughs Cleaning Services Ltd,"3,688.02"
202006,Jun,202006100289,R2700,Cleaning Contract,Bulloughs Cleaning Services Ltd,"1,502.43"
202006,Jun,202006100290,R2700,Cleaning Contract,Bulloughs Cleaning Services Ltd,568.48
202006,Jun,202006100291,R2700,Cleaning Contract,Bulloughs Cleaning Services Ltd,600.97
202006,Jun,202006100294,R2700,Cleaning Contract,Bulloughs Cleaning Services Ltd,"2,746.86"
202006,Jun,202006100298,R2700,Cleaning Contract,Bulloughs Cleaning Services Ltd,"1,502.43"
202006,Jun,202006100301,R2700,Cleaning Contract,Bulloughs Cleaning Services Ltd,"1,397.00"
202006,Jun,202006100303,R2700,Cleaning Contract,Bulloughs Cleaning Services Ltd,517.00
202006,Jun,202006100346,R7006,North West Ambulance Service - Estates Management Collaboration,BID Group Ltd,"1,295.00"
202006,Jun,202006100347,R7006,North West Ambulance Service - Estates Management Collaboration,BID Group Ltd,"2,070.00"
202006,Jun,202006100348,R7006,North West Ambulance Service - Estates Management Collaboration,BID Group Ltd,"1,700.00"
202006,Jun,202006100349,R7006,North West Ambulance Service - Estates Management Collaboration,BID Group Ltd,760.00
202006,Jun,202006100568,R3450,Accident Damage (Below Insurance Excess)),Thompson Accident Repair Centre Ltd,964.39
202006,Jun,202006100569,R3460,Accident Damage (Below Insurance Threshold),Thompson Accident Repair Centre Ltd,583.87
202006,Jun,202006100570,R3460,Accident Damage (Below Insurance Threshold),Thompson Accident Repair Centre Ltd,"1,000.00"
202006,Jun,202006100571,R3460,Accident Damage (Below Insurance Threshold),Thompson Accident Repair Centre Ltd,"4,625.83"
202006,Jun,202006100572,R3460,Accident Damage (Below Insurance Threshold),Thompson Accident Repair Centre Ltd,"1,000.00"
202006,Jun,202006100573,C3905,Vehicle Adaptations - Capital,Thompson Accident Repair Centre Ltd,530.00
202006,Jun,202006100656,R2275,Planned Servicing HVAC System,Carlisle Refrigeration Limited,662.20
202006,Jun,202006100663,R3120,Vehicle Maintenance - Parts Purchase,Lloyd Motorrad,"1,608.34"
202006,Jun,202006100671,R3120,Vehicle Maintenance - Parts Purchase,Lloyd Motorrad,519.74
202006,Jun,202006100673,R3130,Vehicle Maintenance - Work Done Externally,Lloyd Motorrad,592.93
202006,Jun,202006100674,R3110,Vehicle Maintenance - Tyres & Tubes,Lloyd Motorrad,500.99
202006,Jun,202006100749,R2050,Unplanned Building Services Electrics,JJ Group (Contracting) Ltd,798.40
202006,Jun,202006100766,R7006,North West Ambulance Service - Estates Management Collaboration,Cumbria Mechanical and Plumbing Ltd,806.45
202006,Jun,202006100770,R2260,Planned Servicing Boiler & Heating Plant,Cumbria Mechanical and Plumbing Ltd,880.00
202006,Jun,202006100782,R2060,Unplanned Building Services Environmental Services/Plumbing,Cumbria Mechanical and Plumbing Ltd,802.36
202006,Jun,202006100856,R2600,Rent,Walton Goodland Limited,"1,750.00"
202006,Jun,202006101075,R2460,Grounds Maintenance - Contract,S Nicholson Grounds Maintenance,765.00
202006,Jun,202006101277,R2230,Planned Survey Electrics,PSS Home Entertainment Limited,"1,750.00"
202006,Jun,202006102149,R2230,Planned Survey Electrics,West Cumbria Estates Management Limited,677.00
202006,Jun,202006102150,R2680,PFI Occupancy Charges,West Cumbria Estates Management Limited,"105,000.00"
202006,Jun,202006102151,R2230,Planned Survey Electrics,West Cumbria Estates Management Limited,977.90
202006,Jun,202006102152,R2680,PFI Occupancy Charges,West Cumbria Estates Management Limited,"105,000.00"
202006,Jun,202006102172,C3905,Vehicle Adaptations - Capital,Fleet ID Ltd,"2,016.68"
202006,Jun,202006102173,C3905,Vehicle Adaptations - Capital,Fleet ID Ltd,"4,033.36"
202006,Jun,202006102174,C3905,Vehicle Adaptations - Capital,Fleet ID Ltd,"-4,033.36"
202006,Jun,202006102302,R3120,Vehicle Maintenance - Parts Purchase,Arnold Clark Automobiles Ltd,932.74
202006,Jun,202006102312,R3120,Vehicle Maintenance - Parts Purchase,Arnold Clark Automobiles Ltd,507.02
202006,Jun,202006102336,R3120,Vehicle Maintenance - Parts Purchase,Arnold Clark Automobiles Ltd,792.81
202006,Jun,202006102437,R3210,Police Vehicle Recovery & Transport,FMG Support (RRRM) Ltd,"2,362.80"
202006,Jun,202006102490,R2730,Refuse,Biffa Waste Services Limited,610.08
202006,Jun,202006102491,R2730,Refuse,Biffa Waste Services Limited,513.60
202006,Jun,202006102493,R2730,Refuse,Biffa Waste Services Limited,754.80
202006,Jun,202006102650,R3120,Vehicle Maintenance - Parts Purchase,Pye Motors Ltd,844.00
202006,Jun,202006102766,R2265,Planned Servicing Fire Systems,FTS Fire and  Security Ltd,600.00
202006,Jun,202006102767,R7006,North West Ambulance Service - Estates Management Collaboration,FTS Fire and  Security Ltd,570.01
202006,Jun,202006102884,R3120,Vehicle Maintenance - Parts Purchase,D Stoker Group Ltd,542.54
202006,Jun,202006102885,R3120,Vehicle Maintenance - Parts Purchase,D Stoker Group Ltd,565.16
202006,Jun,202006102886,R3120,Vehicle Maintenance - Parts Purchase,D Stoker Group Ltd,-542.54
202006,Jun,202006103008,R3120,Vehicle Maintenance - Parts Purchase,Guy Perry Ltd,517.84
202006,Jun,202006103026,R3120,Vehicle Maintenance - Parts Purchase,Guy Perry Ltd,528.14
202006,Jun,202006103028,R3120,Vehicle Maintenance - Parts Purchase,Guy Perry Ltd,528.14
202006,Jun,202006103034,R3120,Vehicle Maintenance - Parts Purchase,Guy Perry Ltd,834.76
202006,Jun,202006103038,R3120,Vehicle Maintenance - Parts Purchase,Guy Perry Ltd,"1,757.95"
202006,Jun,202006103040,R3120,Vehicle Maintenance - Parts Purchase,Guy Perry Ltd,857.30
202006,Jun,202006103054,R2610,Estates Leases,Dalton Community Association,"1,100.00"
202006,Jun,202006103311,R3120,Vehicle Maintenance - Parts Purchase,Volkswagen Group UK Ltd,588.13
202006,Jun,202006103525,R2610,Estates Leases,Ulverston Properties Limited,820.83
202006,Jun,202006103637,R2260,Planned Servicing Boiler & Heating Plant,Zip Heaters UK Ltd t a Zip Water,"1,776.00"
202006,Jun,202006103801,R3120,Vehicle Maintenance - Parts Purchase,Ford Motor Co Ltd T/A Parts Plus,524.48
202006,Jun,202006103819,R3120,Vehicle Maintenance - Parts Purchase,Ford Motor Co Ltd T/A Parts Plus,546.75
202006,Jun,202006103823,R3120,Vehicle Maintenance - Parts Purchase,Ford Motor Co Ltd T/A Parts Plus,862.25
202006,Jun,202006103850,R3120,Vehicle Maintenance - Parts Purchase,Ford Motor Co Ltd T/A Parts Plus,510.40
202006,Jun,202006103929,R2286,Planned Servicing Generators/UPS,Power Tecnique Limited,808.50
202006,Jun,202006103931,R2050,Unplanned Building Services Electrics,Power Tecnique Limited,545.00
202006,Jun,202006103933,R7006,North West Ambulance Service - Estates Management Collaboration,W Hughes & Sons Limited,"24,100.00"
202006,Jun,202006104144,R3450,Accident Damage (Below Insurance Excess)),Enterprise Rent-a-car UK Limited,612.27
202006,Jun,202006104145,R3450,Accident Damage (Below Insurance Excess)),Enterprise Rent-a-car UK Limited,583.81
202006,Jun,202006104162,R3450,Accident Damage (Below Insurance Excess)),Enterprise Rent-a-car UK Limited,771.56
202006,Jun,202006104164,R3450,Accident Damage (Below Insurance Excess)),Enterprise Rent-a-car UK Limited,747.92
202006,Jun,202006104290,R7006,North West Ambulance Service - Estates Management Collaboration,Countrywide Grounds Maintenance Ltd,"3,208.34"
202006,Jun,202006104470,R3120,Vehicle Maintenance - Parts Purchase,Lloyd Motors Ltd,616.38
202006,Jun,202006104478,R3120,Vehicle Maintenance - Parts Purchase,Lloyd Motors Ltd,589.72
202006,Jun,202006104497,R3120,Vehicle Maintenance - Parts Purchase,Lloyd Motors Ltd,536.55
202006,Jun,202006104505,R3120,Vehicle Maintenance - Parts Purchase,Lloyd Motors Ltd,590.46
202006,Jun,202006104507,R3110,Vehicle Maintenance - Tyres & Tubes,Lloyd Motors Ltd,928.08
202006,Jun,202006104509,R3110,Vehicle Maintenance - Tyres & Tubes,Lloyd Motors Ltd,"1,534.78"
202006,Jun,202006104535,R2505,Gas,Corona Energy,"10,122.75"
202006,Jun,202006104536,R2530,Climate Change Levy,Corona Energy,"1,438.39"
202006,Jun,202006104654,R3510,Vehicle Fuel,Allstar Business Solutions Ltd,661.20
202006,Jun,202006104655,R3510,Vehicle Fuel,Allstar Business Solutions Ltd,"38,452.74"
202006,Jun,202006104657,R3510,Vehicle Fuel,Allstar Business Solutions Ltd,799.45
202006,Jun,202006104658,R3510,Vehicle Fuel,Allstar Business Solutions Ltd,"1,767.29"
202006,Jun,202006104661,R3510,Vehicle Fuel,Allstar Business Solutions Ltd,623.49
202006,Jun,202006104662,R3510,Vehicle Fuel,Allstar Business Solutions Ltd,873.87
202006,Jun,202006104689,R2140,Unplanned Building Maintenance Internal Maintenance,Chubb Locks Custodial Services Ltd,"1,187.37"
202006,Jun,202006104690,R2030,Unplanned Building Services Security & Security Equipment Maintenance,Chubb Locks Custodial Services Ltd,525.00
202006,Jun,202006100027,R5600,Postage Costs,Pitney Bowes Ltd,"1,516.27"
202006,Jun,202006101011,R5630,Courier Services - Internal Deliveries,Cumbria County Council,"2,904.63"
202006,Jun,202006101012,R5630,Courier Services - Internal Deliveries,Cumbria County Council,"3,376.47"
202006,Jun,202006101109,R4090,The information is confidential or would attract an exemption under the Freedom of Information Act e.g. where disclosure could be prejudicial to the commercial interests of any person including the authority,Redacted,819.90
202006,Jun,202006101110,R4090,The information is confidential or would attract an exemption under the Freedom of Information Act e.g. where disclosure could be prejudicial to the commercial interests of any person including the authority,Redacted,602.46
202006,Jun,202006101111,R4090,The information is confidential or would attract an exemption under the Freedom of Information Act e.g. where disclosure could be prejudicial to the commercial interests of any person including the authority,Redacted,538.14
202006,Jun,202006101113,R4090,The information is confidential or would attract an exemption under the Freedom of Information Act e.g. where disclosure could be prejudicial to the commercial interests of any person including the authority,Redacted,512.40
202006,Jun,202006102031,R6850,Hotel Accommodation - Training,Capita Travel and Events,"3,360.00"
202006,Jun,202006102034,R6850,Hotel Accommodation - Training,Capita Travel and Events,"1,920.00"
202006,Jun,202006102039,R6850,Hotel Accommodation - Training,Capita Travel and Events,942.00
202006,Jun,202006102040,R6850,Hotel Accommodation - Training,Capita Travel and Events,"9,120.00"
202006,Jun,202006102049,R6850,Hotel Accommodation - Training,Capita Travel and Events,"1,250.00"
202006,Jun,202006102050,R6850,Hotel Accommodation - Training,Capita Travel and Events,550.00
202006,Jun,202006104155,R3605,Vehicle Hire - Training,Enterprise Rent-a-car UK Limited,520.44
202006,Jun,202006104232,R5600,Postage Costs,Royal Mail,787.00
202006,Jun,202006102630,R1800,Further Education,University of Cumbria,"-1,100.00"
202006,Jun,202006102631,R1800,Further Education,University of Cumbria,"1,912.50"
202006,Jun,202006104206,R1720,Other Support Function Training,SFJ Awards Limited,"1,836.00"
202006,Jun,202006104207,R1720,Other Support Function Training,SFJ Awards Limited,"1,088.00"
202006,Jun,202006104208,R1720,Other Support Function Training,SFJ Awards Limited,"1,088.00"
202006,Jun,202006104209,R1720,Other Support Function Training,SFJ Awards Limited,"2,448.00"
202006,Jun,202006104211,R1720,Other Support Function Training,SFJ Awards Limited,"1,224.00"
202006,Jun,202006102374,R5350,Web Design & Running Costs,Smartsurvey Ltd,540.00
202006,Jun,202006102497,R6750,Consultants Fees - Other,SMSR Ltd,707.00
202006,Jun,202006104189,R6730,Non-Staff Advertising,Global Radio Services Limited,765.63
202006,Jun,202006104367,R5350,Web Design & Running Costs,Zengenti Ltd,"8,016.00"
202006,Jun,202006104235,R5600,Postage Costs,Royal Mail,995.34
202006,Jun,202006100866,R6990,Other Miscellaneous Expenditure,Carlisle City Council,"3,777.33"
202006,Jun,202006101304,R6785,Contributions - PCC Commissioning Services,Eden District Council,"-6,000.00"
202006,Jun,202006101305,R6785,Contributions - PCC Commissioning Services,Eden District Council,"6,000.00"
202006,Jun,202006101309,R6785,Contributions - PCC Commissioning Services,North Cumbria Integrated care NHS Foundation Trust (NCIC NHS FT),"-42,000.00"
202006,Jun,202006101310,R2600,Rent,North Cumbria Integrated care NHS Foundation Trust (NCIC NHS FT),"1,400.00"
202006,Jun,202006101311,R2700,Cleaning Contract,North Cumbria Integrated care NHS Foundation Trust (NCIC NHS FT),"2,186.25"
202006,Jun,202006101312,R2700,Cleaning Contract,North Cumbria Integrated care NHS Foundation Trust (NCIC NHS FT),"2,186.25"
202006,Jun,202006101313,R2700,Cleaning Contract,North Cumbria Integrated care NHS Foundation Trust (NCIC NHS FT),"1,560.54"
202006,Jun,202006101315,R2510,Electricity,North Cumbria Integrated care NHS Foundation Trust (NCIC NHS FT),"1,117.84"
202006,Jun,202006101318,R6785,Contributions - PCC Commissioning Services,North Cumbria Integrated care NHS Foundation Trust (NCIC NHS FT),"42,000.00"
202006,Jun,202006101858,R6785,Contributions - PCC Commissioning Services,Victim Support,"73,369.42"
202006,Jun,202006101859,R6785,Contributions - PCC Commissioning Services,Victim Support,"14,191.25"
202006,Jun,202006102647,R6785,Contributions - PCC Commissioning Services,Resource Creatives Enterprises Ltd,692.44
202006,Jun,202006102648,R6785,Contributions - PCC Commissioning Services,Resource Creatives Enterprises Ltd,692.44
202006,Jun,202006102649,R6785,Contributions - PCC Commissioning Services,Resource Creatives Enterprises Ltd,"2,967.60"
202006,Jun,202006103109,R6785,Contributions - PCC Commissioning Services,Satterthwaite & Rusland Rural Crime Initiative,842.40
202006,Jun,202006103381,R0500,Agency Staff,Comensura Ltd,902.06
202006,Jun,202006103388,R0500,Agency Staff,Comensura Ltd,963.01
202006,Jun,202006103395,R0500,Agency Staff,Comensura Ltd,"1,194.62"
202006,Jun,202006103402,R0500,Agency Staff,Comensura Ltd,926.44
202006,Jun,202006103408,R0500,Agency Staff,Comensura Ltd,804.54
202006,Jun,202006103415,R0500,Agency Staff,Comensura Ltd,926.44
202006,Jun,202006103421,R0500,Agency Staff,Comensura Ltd,877.68
202006,Jun,202006103429,R0500,Agency Staff,Comensura Ltd,902.06
202006,Jun,202006103528,R6785,Contributions - PCC Commissioning Services,"Cumbria, Northumberland Tyne & Wear NHS FT","84,000.00"
202006,Jun,202006103943,R6785,Contributions - PCC Commissioning Services,Restorative Solutions CIC,"5,000.00"
202006,Jun,202006104203,R6785,Contributions - PCC Commissioning Services,Remedi Restorative Services,"11,641.67"
202006,Jun,202006104204,R6785,Contributions - PCC Commissioning Services,Remedi Restorative Services,"11,641.67"
202006,Jun,202006100865,R7090,Other Collaboration Payments,Carlisle City Council,"6,000.00"
202006,Jun,202006101811,R7090,Other Collaboration Payments,Police and Crime Commissioner for Cheshire,"5,520.60"
202006,Jun,202006104010,R7090,Other Collaboration Payments,Police and Crime Commissioner for Lancashire,"2,137.54"
202006,Jun,202006100105,C5790,Operational Equipment - Audio / Video Equipment,NDI Recognition Systems Limited,"25,230.00"
202006,Jun,202006101256,R5865,Operational Equipment - Other,Dave Hudson,820.00
202006,Jun,202006101774,R4710,Forensic Analysis - Serious Crime,Key Forensic Services Ltd (Orange UK Holdings Ltd),"1,047.20"
202006,Jun,202006101775,R4710,Forensic Analysis - Serious Crime,Key Forensic Services Ltd (Orange UK Holdings Ltd),"1,393.04"
202006,Jun,202006101777,R4715,Forensic Analysis - Volume Crime,Key Forensic Services Ltd (Orange UK Holdings Ltd),754.00
202006,Jun,202006101780,R4705,Forensic Analysis - Over Prescribed Limit,Key Forensic Services Ltd (Orange UK Holdings Ltd),"1,949.53"
202006,Jun,202006101781,R4705,Forensic Analysis - Over Prescribed Limit,Key Forensic Services Ltd (Orange UK Holdings Ltd),"1,283.25"
202006,Jun,202006101782,R4705,Forensic Analysis - Over Prescribed Limit,Key Forensic Services Ltd (Orange UK Holdings Ltd),"1,370.25"
202006,Jun,202006101784,R4705,Forensic Analysis - Over Prescribed Limit,Key Forensic Services Ltd (Orange UK Holdings Ltd),"1,188.28"
202006,Jun,202006101785,R4705,Forensic Analysis - Over Prescribed Limit,Key Forensic Services Ltd (Orange UK Holdings Ltd),"1,805.25"
202006,Jun,202006101786,R4705,Forensic Analysis - Over Prescribed Limit,Key Forensic Services Ltd (Orange UK Holdings Ltd),"1,370.25"
202006,Jun,202006101788,R4710,Forensic Analysis - Serious Crime,Key Forensic Services Ltd (Orange UK Holdings Ltd),"1,419.70"
202006,Jun,202006101789,R4710,Forensic Analysis - Serious Crime,Key Forensic Services Ltd (Orange UK Holdings Ltd),"1,742.10"
202006,Jun,202006101790,R4715,Forensic Analysis - Volume Crime,Key Forensic Services Ltd (Orange UK Holdings Ltd),622.05
202006,Jun,202006101793,R4710,Forensic Analysis - Serious Crime,Key Forensic Services Ltd (Orange UK Holdings Ltd),"2,102.30"
202006,Jun,202006101795,R4715,Forensic Analysis - Volume Crime,Key Forensic Services Ltd (Orange UK Holdings Ltd),"2,204.00"
202006,Jun,202006101798,R4715,Forensic Analysis - Volume Crime,Key Forensic Services Ltd (Orange UK Holdings Ltd),604.94
202006,Jun,202006101799,R5865,Operational Equipment - Other,Cummins Allison Ltd,"1,173.00"
202006,Jun,202006102618,R7065,TITAN - North West Collaboration,Police and Crime Commissioner for Merseyside,"1,279.00"
202006,Jun,202006102619,R7065,TITAN - North West Collaboration,Police and Crime Commissioner for Merseyside,"1,467.16"
202006,Jun,202006102635,R5950,Disclosure of information would breach the Data Protection Act 1998 ,Redacted,562.78
202006,Jun,202006102666,R5950,Disclosure of information would breach the Data Protection Act 1998 ,Redacted,712.23
202006,Jun,202006102667,R5950,Disclosure of information would breach the Data Protection Act 1998 ,Redacted,528.50
202006,Jun,202006102674,R5950,Disclosure of information would breach the Data Protection Act 1998 ,Redacted,530.52
202006,Jun,202006103611,R5815,Operational Equipment - Hi-Tech. Crime,RS Components Limited,988.75
202006,Jun,202006103681,R4715,Forensic Analysis - Volume Crime,Orchid Cellmark Ltd,601.75
202006,Jun,202006103682,R4715,Forensic Analysis - Volume Crime,Orchid Cellmark Ltd,649.60
202006,Jun,202006103683,R4715,Forensic Analysis - Volume Crime,Orchid Cellmark Ltd,"1,948.80"
202006,Jun,202006103946,R4700,Disclosure of information would breach the Data Protection Act 1998 ,Redacted,"2,851.02"
202006,Jun,202006103947,R4700,Disclosure of information would breach the Data Protection Act 1998 ,Redacted,"2,998.04"
202006,Jun,202006103948,R4700,Disclosure of information would breach the Data Protection Act 1998 ,Redacted,"2,651.00"
202006,Jun,202006104308,R7135,The information is confidential or would attract an exemption under the Freedom of Information Act e.g. where disclosure could be prejudicial to the commercial interests of any person including the authority ,Redacted,"3,485.00"
202006,Jun,202006104331,R4780,CSI Consumables,Glendale Presentation Solutions Ltd,"1,505.00"
202006,Jun,202006104368,R4780,CSI Consumables,Acota Limited,"4,620.04"
202006,Jun,202006104420,R4720,Forensic Analysis - PACE / DNA,Eurofins Forensic Services Ltd,"2,207.19"
202006,Jun,202006104423,R4720,Forensic Analysis - PACE / DNA,Eurofins Forensic Services Ltd,"1,253.25"
202006,Jun,202006100184,R4630,Detained Persons - Appropriate Adult Services,Child Action Northwest,"9,883.16"
202006,Jun,202006101334,R5916,Police Dogs - Vets Fees,Frame Swift and Partners LLP,761.07
202006,Jun,202006101480,R6702,Confiscated Animal Costs,Whinmill Farm Canine Centre,"2,850.00"
202006,Jun,202006101812,R5980,Firearms Equipment,Same Day PLC Guardian Service,"3,377.05"
202006,Jun,202006102447,R5980,Firearms Equipment,Viking Arms Ltd,"13,615.00"
202006,Jun,202006102449,R5980,Firearms Equipment,Viking Arms Ltd,"4,775.00"
202006,Jun,202006102610,R4600,Detained Persons - Meals / Refreshments,Bidfood,581.02
202006,Jun,202006103437,R4610,Detained Persons - Equipment,Thomas Kneale,799.60
202006,Jun,202006103477,R5800,Operational Equipment - Breathalyser Consumables,BOC Limited,549.00
202006,Jun,202006103483,R5800,Operational Equipment - Breathalyser Consumables,BOC Limited,508.05
202006,Jun,202006103491,R5800,Operational Equipment - Breathalyser Consumables,BOC Limited,508.05
202006,Jun,202006103595,R5980,Firearms Equipment,Axon Public Safety UK Limited,"59,125.00"
202006,Jun,202006103631,R5790,Operational Equipment - Audio / Video Equipment,Wex Photo Video,827.52
202006,Jun,202006103651,R4950,Interpreters Fees - Face to Face,Capita Translation and Interpreting (Applied Language Solutions Ltd),972.00
202006,Jun,202006103653,R4950,Interpreters Fees - Face to Face,Capita Translation and Interpreting (Applied Language Solutions Ltd),"1,354.98"
202006,Jun,202006103654,R4955,Interpreters Fees - Telephone,Capita Translation and Interpreting (Applied Language Solutions Ltd),800.00
202006,Jun,202006104375,R4940,First Aid Equipment / Consumables,S P Services UK Ltd,920.84
202006,Jun,202006104389,R5980,Firearms Equipment,UK Tactical,"1,797.00"
202006,Jun,202006104391,R5867,Operational Equipment - Maintenance,Tellemachus Limited,"1,444.50"
202006,Jun,202006104684,R6780,Grants & Donations,Care of Police Survivors,"2,000.00"
202006,Jun,202006100055,R4940,First Aid Equipment / Consumables,Arrow County Supplies,"1,514.00"
202006,Jun,202006100060,R4940,First Aid Equipment / Consumables,Arrow County Supplies,"-1,514.00"
202006,Jun,202006100311,R2700,Cleaning Contract,Bulloughs Cleaning Services Ltd,"6,207.08"
202006,Jun,202006100588,R2865,Premises Signage,B K Screenprint,"2,445.38"
202006,Jun,202006100683,R2410,Minor Works,Grafix Signmakers Ltd,"1,664.00"
202006,Jun,202006100969,R2410,Minor Works,A W Blake Ltd,632.40
202006,Jun,202006101053,R4940,First Aid Equipment / Consumables,Thomas Graham and Sons Limited,"1,666.00"
202006,Jun,202006101054,R4940,First Aid Equipment / Consumables,Thomas Graham and Sons Limited,"2,676.75"
202006,Jun,202006101058,R4940,First Aid Equipment / Consumables,Thomas Graham and Sons Limited,"3,600.00"
202006,Jun,202006101195,R5980,Firearms Equipment,T W Relph and Sons Ltd,575.00
202006,Jun,202006101278,R4000,Office Equipment - Purchase,PSS Home Entertainment Limited,950.00
202006,Jun,202006101553,R2410,Minor Works,Frederick Potts and Sons Ltd,"3,884.00"
202006,Jun,202006102148,R2700,Cleaning Contract,West Cumbria Estates Management Limited,"1,063.13"
202006,Jun,202006103351,R4940,First Aid Equipment / Consumables,CID Hygiene,538.50
202006,Jun,202006104175,R6755,Consultants Fees - ICT,Bottomline Technologies Europe Ltd,600.00
202006,Jun,202006104348,R5310,Computer Hardware - Purchase,Stone Computers Ltd,"262,884.00"
202006,Jun,202006104349,R5310,Computer Hardware - Purchase,Stone Computers Ltd,"25,366.00"
202006,Jun,202006104417,R4715,Forensic Analysis - Volume Crime,Eurofins Forensic Services Ltd,"2,418.02"
202006,Jun,202006104731,R4940,First Aid Equipment / Consumables,City Electrical Factors Ltd,745.00
202006,Jun,202006100004,R4300,Furniture - General,"Lafayette Instrument Company, Inc.","1,394.91"
202006,Jun,202006100063,B2302,Inventories/Stocks - General / Admin Equipment - Purchases,Arrow County Supplies,697.40
202006,Jun,202006100065,B2302,Inventories/Stocks - General / Admin Equipment - Purchases,Arrow County Supplies,659.44
202006,Jun,202006100075,B2312,Inventories/Stocks - Uniforms - Purchases,TCH UK Ltd,590.00
202006,Jun,202006100365,R4300,Furniture - General,Gresham Office Furniture,"1,939.20"
202006,Jun,202006100368,R4300,Furniture - General,Gresham Office Furniture,"1,596.00"
202006,Jun,202006101414,R4400,Books & Publications,Hills Books,714.00
202006,Jun,202006101679,B2302,Inventories/Stocks - General / Admin Equipment - Purchases,Scenesafe,"1,027.28"
202006,Jun,202006101694,B2302,Inventories/Stocks - General / Admin Equipment - Purchases,Scenesafe,538.40
202006,Jun,202006101703,B2302,Inventories/Stocks - General / Admin Equipment - Purchases,Scenesafe,841.68
202006,Jun,202006101704,B2302,Inventories/Stocks - General / Admin Equipment - Purchases,Scenesafe,"1,699.84"
202006,Jun,202006102550,B2312,Inventories/Stocks - Uniforms - Purchases,Keela International Ltd,611.70
202006,Jun,202006102553,B2312,Inventories/Stocks - Uniforms - Purchases,Keela International Ltd,"2,899.00"
202006,Jun,202006102558,B2312,Inventories/Stocks - Uniforms - Purchases,Try and Lilly Ltd,798.94
202006,Jun,202006102578,B2302,Inventories/Stocks - General / Admin Equipment - Purchases,Kays Medical Limited,"1,282.60"
202006,Jun,202006102602,B2312,Inventories/Stocks - Uniforms - Purchases,MC Products UK Ltd,583.24
202006,Jun,202006102603,B2312,Inventories/Stocks - Uniforms - Purchases,MC Products UK Ltd,921.60
202006,Jun,202006103347,B2312,Inventories/Stocks - Uniforms - Purchases,Turner Virr  Co Ltd,"1,568.10"
202006,Jun,202006103556,B2302,Inventories/Stocks - General / Admin Equipment - Purchases,Essentra Components Ltd,564.24
202006,Jun,202006103603,B2312,Inventories/Stocks - Uniforms - Purchases,Mehler Vario System GmbH,"1,274.90"
202006,Jun,202006103604,B2312,Inventories/Stocks - Uniforms - Purchases,Mehler Vario System GmbH,"1,393.00"
202006,Jun,202006103605,B2312,Inventories/Stocks - Uniforms - Purchases,Mehler Vario System GmbH,"1,263.00"
202006,Jun,202006103606,B2312,Inventories/Stocks - Uniforms - Purchases,Mehler Vario System GmbH,"5,813.40"
202006,Jun,202006103614,B2312,Inventories/Stocks - Uniforms - Purchases,Axess International Limited,504.40
202006,Jun,202006103617,B2312,Inventories/Stocks - Uniforms - Purchases,Peter Jones ILG Ltd,991.00
202006,Jun,202006103669,B2312,Inventories/Stocks - Uniforms - Purchases,CW Headdress Ltd,"1,118.00"
202006,Jun,202006104317,B2312,Inventories/Stocks - Uniforms - Purchases,SBI TacPro,"2,407.00"
202006,Jun,202006104318,B2312,Inventories/Stocks - Uniforms - Purchases,SBI TacPro,"2,219.74"
202006,Jun,202006104319,B2312,Inventories/Stocks - Uniforms - Purchases,SBI TacPro,"1,520.40"
202006,Jun,202006104320,B2312,Inventories/Stocks - Uniforms - Purchases,SBI TacPro,"2,027.20"
202006,Jun,202006104329,R4400,Books & Publications,Thomson Reuters,"10,013.57"
202006,Jun,202006104736,B2312,Inventories/Stocks - Uniforms - Purchases,Michael Lupton Associates Ltd,519.40
202006,Jun,202006104739,B2312,Inventories/Stocks - Uniforms - Purchases,Michael Lupton Associates Ltd,"1,007.50"
202006,Jun,202006104742,B2312,Inventories/Stocks - Uniforms - Purchases,Michael Lupton Associates Ltd,"2,268.00"
202006,Jun,202006104744,B2312,Inventories/Stocks - Uniforms - Purchases,Michael Lupton Associates Ltd,"2,101.86"
202006,Jun,202006104745,B2312,Inventories/Stocks - Uniforms - Purchases,Michael Lupton Associates Ltd,798.00
202006,Jun,202006104748,B2312,Inventories/Stocks - Uniforms - Purchases,Michael Lupton Associates Ltd,608.40
202006,Jun,202006104750,B2312,Inventories/Stocks - Uniforms - Purchases,Michael Lupton Associates Ltd,598.50
202006,Jun,202006100068,R6660,Counsel Fees,Atlantic Chambers,"1,620.00"
202006,Jun,202006102081,B4003,Disclosure of information would breach the Data Protection Act 1998,Redacted,600.00
202006,Jun,202006102562,B4005,Provision for Insurance Liabilities - Drawdown from Provision - Own Solicitor's Costs,Weightmans LLP,-820.80
202006,Jun,202006103182,B4004,Provision for Insurance Liabilities - Drawdown from Provision - Third Party Costs,Plexus Law,"2,012.50"
202006,Jun,202006104529,B4006,Provision for Insurance Liabilities - Drawdown from Provision - Own Counsel's Costs,Outer Temple Chambers,"-2,966.88"
202006,Jun,202006104530,B4053,Provision for Legal Claims - Drawdown from Provision,Outer Temple Chambers,"2,472.40"
